Workbook

Sheet Statement of Account
L1: =IF(J7="مدين",INDEX('[1]Detailed Trial Balance'!AN5:AN99,MATCH(E6,'[1]Detailed Trial Balance'!AC5:AC99,0)),INDEX(-'[1]Detailed Trial Balance'!AO5:AO99,MATCH(E6,'[1]Detailed Trial Balance'!AC5:AC99,0))) -> 271614.17
B2: 1 | C2: 24 | J2: =H7-L1 -> 0
B3: 1 | J3: 2
A4: 1 | B4: التاريخ | E4: =IF(C2="","",VLOOKUP(C2,data,3,FALSE)) -> أصول متداولة | F4: رصيد ما قبل تاريخ كشف الحساب | H4: 0 | I4: 0 | J4: 0
A5: 1 | E5: =IF(C2="","",VLOOKUP(C2,data,4,FALSE)) -> إستثمارات فى أوراق مالية بغرض المتاجرة | F5: رصيد فترة كشف الحساب | H5: 299091.21 | I5: 27477.04 | J5: 271614.17
B6: من | C6: 2013-01-01 | E6: وثائق صندوق ثمـــار | F6: رصيد ما بعد تاريخ كشف الحساب | H6: =SUMIFS(Dr._2012,Movement!D2:D1998,C2,Movement!H2:H1998,">"&C7) -> 0 | I6: =SUMIFS(Cr._2012,Movement!D2:D1998,C2,Movement!H2:H1998,">"&C7) -> 0 | J6: =H6-I6 -> 0
A7: 1 | B7: إلى | C7: 2013-12-31 | E7: =IF(E6="الأهلى سوسيتية جنرال - جنية مصرى",'Chart of Accounts'!E29,"") ->  | F7: الرصيد الإجمالى | H7: 271614.17 | J7: مدين
A8: 1 | J8: 1
A9: 1 | J9: 2
A10: 1 | J10: 1
A11: 1 | B11: مدين | C11: دائن | D11: رصيد | E11: البيــــــــــــان | F11: رقم الشيك | G11: المستند | H11: رقم المستند | I11: التاريخ | J11: م | K11: 1
B12: 675.92 | C12: 0 | D12: =IF(OR(B12<>"",C12<>""),B12-C12,"") -> 675.92 | E12: رصيد أول المدة | G12: قيد إفتتاحية | H12: 0/0 | I12: 2013-01-01 | J12: 1
B13: 169.47 | D13: =IF(AND(B13="",C13=""),"",D12+B13-C13) -> 845.39 | E13: شراء 1 وثيقة ثمار | G13: قيد يومية | I13: 2013-01-10 | J13: 2
C14: 169.08 | D14: =IF(AND(B14="",C14=""),"",D13+B14-C14) -> 676.31 | E14: إسترداد 1 وثيقة ثمار | G14: قيد يومية | I14: 2013-01-14 | J14: 3
B15: 182906.5 | D15: =IF(AND(B15="",C15=""),"",D14+B15-C15) -> 183582.81 | E15: شراء 1074 وثيقة ثمار | G15: قيد يومية | I15: 2013-01-27 | J15: 4
C16: 6641.68 | D16: =IF(AND(B16="",C16=""),"",D15+B16-C16) -> 176941.13 | E16: إسترداد 39 وثيقة ثمار | G16: قيد يومية | I16: 2013-01-29 | J16: 5
C17: 340.6 | D17: =IF(AND(B17="",C17=""),"",D16+B17-C17) -> 176600.53 | E17: إسترداد 2 وثيقة ثمار | G17: قيد يومية | I17: 2013-02-11 | J17: 6
C18: 6811.98 | D18: =IF(AND(B18="",C18=""),"",D17+B18-C18) -> 169788.55 | E18: إسترداد 40 وثيقة ثمار | G18: قيد يومية | I18: 2013-02-27 | J18: 7
B19: 171.84 | D19: =IF(AND(B19="",C19=""),"",D18+B19-C19) -> 169960.39 | E19: شراء 1 وثيقة ثمار | G19: قيد يومية | I19: 2013-02-28 | J19: 8
C20: 170.3 | D20: =IF(AND(B20="",C20=""),"",D19+B20-C20) -> 169790.09 | E20: إسترداد 1 وثيقة ثمار | G20: قيد يومية | I20: 2013-03-12 | J20: 9
C21: 6471.44 | D21: =IF(AND(B21="",C21=""),"",D20+B21-C21) -> 163318.65 | E21: إسترداد 38 وثيقة ثمار | G21: قيد يومية | I21: 2013-03-27 | J21: 10
B22: 115167.48 | D22: 278486.13 | E22: شراء 662 وثيقة ثمار | G22: قيد يومية | I22: 2013-04-14 | J22: 11
C23: 343.6 | D23: 278142.53 | E23: إسترداد 2 وثيقة ثمار | G23: قيد يومية | I23: 2013-04-14 | J23: 12
C24: 6356.56 | D24: 271785.97 | E24: إسترداد 37 وثيقة ثمار | G24: قيد يومية | I24: 2013-04-29 | J24: 13
C25: 171.8 | D25: =IF(AND(B25="",C25=""),"",D24+B25-C25) -> 271614.17 | E25: إسترداد 1 وثيقة ثمار | G25: قيد يومية | I25: 2013-05-08 | J25: 14
D27: =IF(AND(B27="",C27=""),"",D26+B27-C27) -> 
D28: =IF(AND(B28="",C28=""),"",D27+B28-C28) -> 
D31: =IF(AND(B31="",C31=""),"",D30+B31-C31) -> 
D34: =IF(AND(B34="",C34=""),"",D33+B34-C34) -> 
D35: =IF(AND(B35="",C35=""),"",D34+B35-C35) -> 
D36: =IF(AND(B36="",C36=""),"",D35+B36-C36) -> 
D44: =IF(AND(B44="",C44=""),"",D43+B44-C44) -> 
D45: =IF(AND(B45="",C45=""),"",D44+B45-C45) -> 
D48: =IF(AND(B48="",C48=""),"",D47+B48-C48) -> 
D56: =IF(AND(B56="",C56=""),"",D55+B56-C56) -> 
D59: =IF(AND(B59="",C59=""),"",D58+B59-C59) -> 
D72: =IF(AND(B72="",C72=""),"",D71+B72-C72) -> 
D82: =IF(AND(B82="",C82=""),"",D81+B82-C82) -> 
D146: =IF(AND(B146="",C146=""),"",D145+B146-C146) -> 
D210: =IF(AND(B210="",C210=""),"",D209+B210-C210) -> 
D274: =IF(AND(B274="",C274=""),"",D273+B274-C274) -> 
D338: =IF(AND(B338="",C338=""),"",D337+B338-C338) -> 
D402: =IF(AND(B402="",C402=""),"",D401+B402-C402) -> 
D404: =IF(AND(B404="",C404=""),"",D403+B404-C404) -> 
J405: 1
A406: 1 | J406: 2
J407: 1
B408: =SUM(B12:B383) -> 299091.21 | C408: =SUM(C12:C382) -> 27477.04 | D408: =H7 -> 271614.17 | E408: =NumtoTxt(D408,"جنيهاً","قرشاً")&" فقط لاغير" ->  | J408: 1
J409: 1

Sheet Movement
A1: مدين | B1: دائن | C1: إسم الحساب | D1: رقم الحساب | E1: البيـــــــــــان | F1: رقم القيد | G1: نوع القيد | H1: التاريخ | I1: رقم الشيك | J1: Day | K1: Month | L1: Year
A2: 111992 | B2: 0 | C2: أجهزة ومعدات | D2: =IF(C2="","",INDEX('Chart of Accounts'!$A$2:$A$96,MATCH(C2,'Chart of Accounts'!$B$2:$B$96,0))) -> 2 | E2: رصيد أول المدة | F2: 0/0 | G2: قيد إفتتاحية | H2: 2013-01-01 | J2: =IF(H2="","",DAY(H2)) -> 1 | K2: 0 | L2: =IF(H2="","",YEAR(H2)) -> 2013 | N2: =IF(C2="","",VLOOKUP(D2,data,4,0)) -> أصول ثابتة
A3: 0 | B3: 28880.11 | C3: مجمع إهلاك أجهزة ومعدات | D3: =IF(C3="","",INDEX('Chart of Accounts'!$A$2:$A$96,MATCH(C3,'Chart of Accounts'!$B$2:$B$96,0))) -> 4 | E3: رصيد أول المدة | F3: 0/0 | G3: قيد إفتتاحية | H3: 2013-01-01 | J3: 1 | K3: 0 | L3: 2013 | N3: =IF(C3="","",VLOOKUP(D3,data,4,0)) -> مجمع إهلاك أصول ثابتة
A4: 21363008 | B4: 0 | C4: مبانى | D4: =IF(C4="","",INDEX('Chart of Accounts'!$A$2:$A$96,MATCH(C4,'Chart of Accounts'!$B$2:$B$96,0))) -> 6 | E4: رصيد أول المدة | F4: 0/0 | G4: قيد إفتتاحية | H4: 2013-01-01 | J4: 1 | K4: 0 | L4: 2013 | N4: إستثمارات عقارية
A5: 0 | B5: 867827.11 | C5: مجمع إهلاك مبانى | D5: =IF(C5="","",INDEX('Chart of Accounts'!$A$2:$A$96,MATCH(C5,'Chart of Accounts'!$B$2:$B$96,0))) -> 8 | E5: رصيد أول المدة | F5: 0/0 | G5: قيد إفتتاحية | H5: 2013-01-01 | J5: 1 | K5: 0 | L5: 2013 | N5: مجمع إهلاك إستثمارات عقارية
A6: 7088392.38 | B6: 0 | C6: أقساط تأجير تمويلى مؤجلة الدفع - طويلة الأجل | D6: =IF(C6="","",INDEX('Chart of Accounts'!$A$2:$A$96,MATCH(C6,'Chart of Accounts'!$B$2:$B$96,0))) -> 10 | E6: رصيد أول المدة | F6: 0/0 | G6: قيد إفتتاحية | H6: 2013-01-01 | J6: 1 | K6: 0 | L6: 2013 | N6: =IF(C6="","",VLOOKUP(D6,data,4,0)) -> حسابات مدينة - طويلة الأجل
A7: 0 | B7: 0 | C7: إيرادات مستحقة | D7: =IF(C7="","",INDEX('Chart of Accounts'!$A$2:$A$96,MATCH(C7,'Chart of Accounts'!$B$2:$B$96,0))) -> 12 | E7: رصيد أول المدة | F7: 0/0 | G7: قيد إفتتاحية | H7: 2013-01-01 | J7: 1 | K7: 0 | L7: 2013 | N7: مدينون وحسابات مدينة أخرى
A8: 2786.31 | B8: 0 | C8: مصروفات مدفوعة مقدماً | D8: =IF(C8="","",INDEX('Chart of Accounts'!$A$2:$A$96,MATCH(C8,'Chart of Accounts'!$B$2:$B$96,0))) -> 13 | E8: رصيد أول المدة | F8: 0/0 | G8: قيد إفتتاحية | H8: 2013-01-01 | J8: 1 | K8: 0 | L8: 2013 | N8: مدينون وحسابات مدينة أخرى
A9: 0 | B9: 0 | C9: عهد تحت التسوية - هدى عثمان | D9: =IF(C9="","",INDEX('Chart of Accounts'!$A$2:$A$96,MATCH(C9,'Chart of Accounts'!$B$2:$B$96,0))) -> 14 | E9: رصيد أول المدة | F9: 0/0 | G9: قيد إفتتاحية | H9: 2013-01-01 | J9: 1 | K9: 0 | L9: 2013 | N9: مدينون وحسابات مدينة أخرى
A10: 0 | B10: 0 | C10: عهد تحت التسوية - أيمن كمال | D10: =IF(C10="","",INDEX('Chart of Accounts'!$A$2:$A$96,MATCH(C10,'Chart of Accounts'!$B$2:$B$96,0))) -> 15 | E10: رصيد أول المدة | F10: 0/0 | G10: قيد إفتتاحية | H10: 2013-01-01 | J10: 1 | K10: 0 | L10: 2013 | N10: مدينون وحسابات مدينة أخرى
A11: 1575198.31 | B11: 0 | C11: أقساط تأجير تمويلى مؤجلة الدفع - قصيرة الأجل | D11: =IF(C11="","",INDEX('Chart of Accounts'!$A$2:$A$96,MATCH(C11,'Chart of Accounts'!$B$2:$B$96,0))) -> 18 | E11: رصيد أول المدة | F11: 0/0 | G11: قيد إفتتاحية | H11: 2013-01-01 | J11: 1 | K11: 0 | L11: 2013 | N11: =IF(C11="","",VLOOKUP(D11,data,4,0)) -> مدينون وحسابات مدينة أخرى
A12: 195000 | B12: 0 | C12: أوراق قبض | D12: =IF(C12="","",INDEX('Chart of Accounts'!$A$2:$A$96,MATCH(C12,'Chart of Accounts'!$B$2:$B$96,0))) -> 19 | E12: رصيد أول المدة | F12: 0/0 | G12: قيد إفتتاحية | H12: 2013-01-01 | J12: 1 | K12: 0 | L12: 2013 | N12: مدينون وحسابات مدينة أخرى
A13: 0 | B13: 0 | C13: مدينو بيع إستثمارات عقارية - النيل للتأجير التمويلى | D13: =IF(C13="","",INDEX('Chart of Accounts'!$A$2:$A$96,MATCH(C13,'Chart of Accounts'!$B$2:$B$96,0))) -> 17 | E13: رصيد أول المدة | F13: 0/0 | G13: قيد إفتتاحية | H13: 2013-01-01 | J13: 1 | K13: 0 | L13: 2013 | N13: مدينون وحسابات مدينة أخرى
A14: 0 | B14: 0 | C14: مدينون متنوعون - شركة كونكورد العقارية | D14: =IF(C14="","",INDEX('Chart of Accounts'!$A$2:$A$96,MATCH(C14,'Chart of Accounts'!$B$2:$B$96,0))) -> 20 | E14: رصيد أول المدة | F14: 0/0 | G14: قيد إفتتاحية | H14: 2013-01-01 | J14: 1 | K14: 0 | L14: 2013 | N14: مدينون وحسابات مدينة أخرى
A15: 675.92 | B15: 0 | C15: وثائق صندوق ثمـــار | D15: =IF(C15="","",INDEX('Chart of Accounts'!$A$2:$A$96,MATCH(C15,'Chart of Accounts'!$B$2:$B$96,0))) -> 24 | E15: رصيد أول المدة | F15: 0/0 | G15: قيد إفتتاحية | H15: 2013-01-01 | J15: 1 | K15: 0 | L15: 2013 | N15: إستثمارات فى أوراق مالية بغرض المتاجرة
A16: 0 | B16: 0 | C16: النقدية بالصندوق | D16: =IF(C16="","",INDEX('Chart of Accounts'!$A$2:$A$96,MATCH(C16,'Chart of Accounts'!$B$2:$B$96,0))) -> 26 | E16: رصيد أول المدة | F16: 0/0 | G16: قيد إفتتاحية | H16: 2013-01-01 | J16: 1 | K16: 0 | L16: 2013 | N16: النقدية بالصندوق
A17: 0 | B17: 0 | C17: بنك مصر - جنية مصرى | D17: =IF(C17="","",INDEX('Chart of Accounts'!$A$2:$A$96,MATCH(C17,'Chart of Accounts'!$B$2:$B$96,0))) -> 32 | E17: رصيد أول المدة | F17: 0/0 | G17: قيد إفتتاحية | H17: 2013-01-01 | J17: 1 | K17: 0 | L17: 2013 | N17: بنوك حسابات جارية
A18: 137.81 | B18: 0 | C18: الأهلى سوسيتية جنرال - جنية مصرى | D18: =IF(C18="","",INDEX('Chart of Accounts'!$A$2:$A$96,MATCH(C18,'Chart of Accounts'!$B$2:$B$96,0))) -> 28 | E18: رصيد أول المدة | F18: 0/0 | G18: قيد إفتتاحية | H18: 2013-01-01 | J18: 1 | K18: 0 | L18: 2013 | N18: بنوك حسابات جارية
A19: 29203.01 | B19: 0 | C19: الشركة المصرفية العربية الدولية - جنية مصرى | D19: =IF(C19="","",INDEX('Chart of Accounts'!$A$2:$A$96,MATCH(C19,'Chart of Accounts'!$B$2:$B$96,0))) -> 29 | E19: رصيد أول المدة | F19: 0/0 | G19: قيد إفتتاحية | H19: 2013-01-01 | J19: 1 | K19: 0 | L19: 2013 | N19: =IF(C19="","",VLOOKUP(D19,data,4,0)) -> بنوك حسابات جارية
A20: 115.09 | B20: 0 | C20: الأهلى المصرى - جنية مصرى | D20: =IF(C20="","",INDEX('Chart of Accounts'!$A$2:$A$96,MATCH(C20,'Chart of Accounts'!$B$2:$B$96,0))) -> 31 | E20: رصيد أول المدة | F20: 0/0 | G20: قيد إفتتاحية | H20: 2013-01-01 | J20: 1 | K20: 0 | L20: 2013 | N20: بنوك حسابات جارية
A21: 0 | B21: 0 | C21: العقارى المصرى العربى - جنية مصرى | D21: =IF(C21="","",INDEX('Chart of Accounts'!$A$2:$A$96,MATCH(C21,'Chart of Accounts'!$B$2:$B$96,0))) -> 33 | E21: رصيد أول المدة | F21: 0/0 | G21: قيد إفتتاحية | H21: 2013-01-01 | J21: 1 | K21: 0 | L21: 2013 | N21: بنوك حسابات جارية
A22: 3837 | B22: 0 | C22: التنمية الصناعية والعمال المصرى - جنية مصرى | D22: =IF(C22="","",INDEX('Chart of Accounts'!$A$2:$A$96,MATCH(C22,'Chart of Accounts'!$B$2:$B$96,0))) -> 34 | E22: رصيد أول المدة | F22: 0/0 | G22: قيد إفتتاحية | H22: 2013-01-01 | J22: 1 | K22: 0 | L22: 2013 | N22: =IF(C22="","",VLOOKUP(D22,data,4,0)) -> بنوك حسابات جارية
A23: 0 | B23: 0 | C23: الأهلى سوسيتية جنرال - يورو (ودائع) | D23: =IF(C23="","",INDEX('Chart of Accounts'!$A$2:$A$96,MATCH(C23,'Chart of Accounts'!$B$2:$B$96,0))) -> 36 | E23: رصيد أول المدة | F23: 0/0 | G23: قيد إفتتاحية | H23: 2013-01-01 | J23: 1 | K23: 0 | L23: 2013 | N23: بنوك ودائع لأجل
A24: 0 | B24: 0 | C24: البنك الأهلى المصرى - جنية مصرى | D24: =IF(C24="","",INDEX('Chart of Accounts'!$A$2:$A$96,MATCH(C24,'Chart of Accounts'!$B$2:$B$96,0))) -> 38 | E24: رصيد أول المدة | F24: 0/0 | G24: قيد إفتتاحية | H24: 2013-01-01 | J24: 1 | K24: 0 | L24: 2013 | N24: بنوك حسابات دائنة
A25: 0 | B25: 108867.1 | C25: مصروفات مستحقة | D25: =IF(C25="","",INDEX('Chart of Accounts'!$A$2:$A$96,MATCH(C25,'Chart of Accounts'!$B$2:$B$96,0))) -> 40 | E25: رصيد أول المدة | F25: 0/0 | G25: قيد إفتتاحية | H25: 2013-01-01 | J25: 1 | K25: 0 | L25: 2013 | N25: دائنون وحسابات دائنة أخرى
A26: 0 | B26: 175.85 | C26: هيئة التأمينات الإجتماعية | D26: =IF(C26="","",INDEX('Chart of Accounts'!$A$2:$A$96,MATCH(C26,'Chart of Accounts'!$B$2:$B$96,0))) -> 41 | E26: رصيد أول المدة | F26: 0/0 | G26: قيد إفتتاحية | H26: 2013-01-01 | J26: 1 | K26: 0 | L26: 2013 | N26: دائنون وحسابات دائنة أخرى
A27: 0 | B27: 336050 | C27: إيرادات مقدمة | D27: =IF(C27="","",INDEX('Chart of Accounts'!$A$2:$A$96,MATCH(C27,'Chart of Accounts'!$B$2:$B$96,0))) -> 42 | E27: رصيد أول المدة | F27: 0/0 | G27: قيد إفتتاحية | H27: 2013-01-01 | J27: 1 | K27: 0 | L27: 2013 | N27: دائنون وحسابات دائنة أخرى
A28: 0 | B28: 100 | C28: جارى مصلحة الضرائب - ضرائب خصم | D28: =IF(C28="","",INDEX('Chart of Accounts'!$A$2:$A$96,MATCH(C28,'Chart of Accounts'!$B$2:$B$96,0))) -> 43 | E28: رصيد أول المدة | F28: 0/0 | G28: قيد إفتتاحية | H28: 2013-01-01 | J28: 1 | K28: 0 | L28: 2013 | N28: دائنون وحسابات دائنة أخرى
A29: 0 | B29: 0 | C29: جارى مصلحة الضرائب - ضريبة الدخل | D29: =IF(C29="","",INDEX('Chart of Accounts'!$A$2:$A$96,MATCH(C29,'Chart of Accounts'!$B$2:$B$96,0))) -> 44 | E29: رصيد أول المدة | F29: 0/0 | G29: قيد إفتتاحية | H29: 2013-01-01 | J29: 1 | K29: 0 | L29: 2013 | N29: دائنون وحسابات دائنة أخرى
A30: 0 | B30: 24000 | C30: تأمينات للغير - يورو ديلى | D30: =IF(C30="","",INDEX('Chart of Accounts'!$A$2:$A$96,MATCH(C30,'Chart of Accounts'!$B$2:$B$96,0))) -> 45 | E30: رصيد أول المدة | F30: 0/0 | G30: قيد إفتتاحية | H30: 2013-01-01 | J30: 1 | K30: 0 | L30: 2013 | N30: دائنون وحسابات دائنة أخرى
A31: 0 | B31: 195000 | C31: تأمينات للغير - دليشوس انك | D31: =IF(C31="","",INDEX('Chart of Accounts'!$A$2:$A$96,MATCH(C31,'Chart of Accounts'!$B$2:$B$96,0))) -> 46 | E31: رصيد أول المدة | F31: 0/0 | G31: قيد إفتتاحية | H31: 2013-01-01 | J31: 1 | K31: 0 | L31: 2013 | N31: دائنون وحسابات دائنة أخرى
A32: 0 | B32: 1355480 | C32: أوراق دفع | D32: =IF(C32="","",INDEX('Chart of Accounts'!$A$2:$A$96,MATCH(C32,'Chart of Accounts'!$B$2:$B$96,0))) -> 47 | E32: رصيد أول المدة | F32: 0/0 | G32: قيد إفتتاحية | H32: 2013-01-01 | J32: 1 | K32: 0 | L32: 2013 | N32: دائنون وحسابات دائنة أخرى
A33: 0 | B33: 14652.96 | C33: أرباح مؤجلة من البيع وإعادة التأجير | D33: =IF(C33="","",INDEX('Chart of Accounts'!$A$2:$A$96,MATCH(C33,'Chart of Accounts'!$B$2:$B$96,0))) -> 48 | E33: رصيد أول المدة | F33: 0/0 | G33: قيد إفتتاحية | H33: 2013-01-01 | J33: 1 | K33: 0 | L33: 2013 | N33: =IF(C33="","",VLOOKUP(D33,data,4,0)) -> دائنون وحسابات دائنة أخرى
A34: 0 | B34: 0 | C34: دائنون متنوعون - شركة إسكان خريجى الجيزويت | D34: =IF(C34="","",INDEX('Chart of Accounts'!$A$2:$A$96,MATCH(C34,'Chart of Accounts'!$B$2:$B$96,0))) -> 49 | E34: رصيد أول المدة | F34: 0/0 | G34: قيد إفتتاحية | H34: 2013-01-01 | J34: 1 | K34: 0 | L34: 2013 | N34: دائنون وحسابات دائنة أخرى
A35: 0 | B35: 0 | C35: دائنون متنوعون - مكتب صالح وحجاب | D35: =IF(C35="","",INDEX('Chart of Accounts'!$A$2:$A$96,MATCH(C35,'Chart of Accounts'!$B$2:$B$96,0))) -> 50 | E35: رصيد أول المدة | F35: 0/0 | G35: قيد إفتتاحية | H35: 2013-01-01 | J35: 1 | K35: 0 | L35: 2013 | N35: دائنون وحسابات دائنة أخرى
A36: 0 | B36: 600000 | C36: دائنون متنوعون - حازم بدران | D36: =IF(C36="","",INDEX('Chart of Accounts'!$A$2:$A$96,MATCH(C36,'Chart of Accounts'!$B$2:$B$96,0))) -> 51 | E36: رصيد أول المدة | F36: 0/0 | G36: قيد إفتتاحية | H36: 2013-01-01 | J36: 1 | K36: 0 | L36: 2013 | N36: دائنون وحسابات دائنة أخرى
A37: 0 | B37: 0 | C37: شركة إسكان خريجى الجيزويت | D37: =IF(C37="","",INDEX('Chart of Accounts'!$A$2:$A$96,MATCH(C37,'Chart of Accounts'!$B$2:$B$96,0))) -> 53 | E37: رصيد أول المدة | F37: 0/0 | G37: قيد إفتتاحية | H37: 2013-01-01 | J37: 1 | K37: 0 | L37: 2013 | N37: حسابات دائنة للشركة القابضة
A38: 0 | B38: 140000 | C38: شركة سوفيكو للإستثمارات المالية (ش.م.م) | D38: =IF(C38="","",INDEX('Chart of Accounts'!$A$2:$A$96,MATCH(C38,'Chart of Accounts'!$B$2:$B$96,0))) -> 54 | E38: رصيد أول المدة | F38: 0/0 | G38: قيد إفتتاحية | H38: 2013-01-01 | J38: 1 | K38: 0 | L38: 2013 | N38: حسابات دائنة للشركة القابضة
A39: 0 | B39: 0 | C39: الأستاذ / محمد أشرف عمر عمر | D39: =IF(C39="","",INDEX('Chart of Accounts'!$A$2:$A$96,MATCH(C39,'Chart of Accounts'!$B$2:$B$96,0))) -> 56 | E39: رصيد أول المدة | F39: 0/0 | G39: قيد إفتتاحية | H39: 2013-01-01 | J39: 1 | K39: 0 | L39: 2013 | N39: حسابات جارية دائنة - مساهمين
A40: 0 | B40: 0 | C40: الأستاذ / طارق أمين ملش محمد | D40: =IF(C40="","",INDEX('Chart of Accounts'!$A$2:$A$96,MATCH(C40,'Chart of Accounts'!$B$2:$B$96,0))) -> 57 | E40: رصيد أول المدة | F40: 0/0 | G40: قيد إفتتاحية | H40: 2013-01-01 | J40: 1 | K40: 0 | L40: 2013 | N40: حسابات جارية دائنة - مساهمين
A41: 0 | B41: 0 | C41: الأستاذ / أمين أحمد أمين سعيد | D41: =IF(C41="","",INDEX('Chart of Accounts'!$A$2:$A$96,MATCH(C41,'Chart of Accounts'!$B$2:$B$96,0))) -> 58 | E41: رصيد أول المدة | F41: 0/0 | G41: قيد إفتتاحية | H41: 2013-01-01 | J41: 1 | K41: 0 | L41: 2013 | N41: حسابات جارية دائنة - مساهمين
A42: 0 | B42: 6000000 | C42: الأستاذ / محمد عمر مكرم | D42: =IF(C42="","",INDEX('Chart of Accounts'!$A$2:$A$96,MATCH(C42,'Chart of Accounts'!$B$2:$B$96,0))) -> 59 | E42: رصيد أول المدة | F42: 0/0 | G42: قيد إفتتاحية | H42: 2013-01-01 | J42: 1 | K42: 0 | L42: 2013 | N42: حسابات جارية دائنة - مساهمين
A43: 0 | B43: 15200000 | C43: رأس المال المصدر والمدفوع | D43: =IF(C43="","",INDEX('Chart of Accounts'!$A$2:$A$96,MATCH(C43,'Chart of Accounts'!$B$2:$B$96,0))) -> 60 | E43: رصيد أول المدة | F43: 0/0 | G43: قيد إفتتاحية | H43: 2013-01-01 | J43: 1 | K43: 0 | L43: 2013 | N43: رأس المال المصدر والمدفوع
A44: 0 | B44: 0 | C44: الإحتياطيات | D44: =IF(C44="","",INDEX('Chart of Accounts'!$A$2:$A$96,MATCH(C44,'Chart of Accounts'!$B$2:$B$96,0))) -> 61 | E44: رصيد أول المدة | F44: 0/0 | G44: قيد إفتتاحية | H44: 2013-01-01 | J44: 1 | K44: 0 | L44: 2013 | N44: الإحتياطيات
A45: 0 | B45: 0 | C45: إحتياطى قانونى | D45: =IF(C45="","",INDEX('Chart of Accounts'!$A$2:$A$96,MATCH(C45,'Chart of Accounts'!$B$2:$B$96,0))) -> 62 | E45: رصيد أول المدة | F45: 0/0 | G45: قيد إفتتاحية | H45: 2013-01-01 | J45: 1 | K45: 0 | L45: 2013 | N45: الإحتياطيات
A46: 0 | B46: -956650.78 | C46: أرباح مرحلة | D46: =IF(C46="","",INDEX('Chart of Accounts'!$A$2:$A$96,MATCH(C46,'Chart of Accounts'!$B$2:$B$96,0))) -> 63 | E46: رصيد أول المدة | F46: 0/0 | G46: قيد إفتتاحية | H46: 2013-01-01 | J46: 1 | K46: 0 | L46: 2013 | N46: أرباح مرحلة
A47: 0 | B47: 290365 | C47: إلتزام ضريبى مؤجل | D47: =IF(C47="","",INDEX('Chart of Accounts'!$A$2:$A$96,MATCH(C47,'Chart of Accounts'!$B$2:$B$96,0))) -> 64 | E47: رصيد أول المدة | F47: 0/0 | G47: قيد إفتتاحية | H47: 2013-01-01 | J47: 1 | K47: 0 | L47: 2013 | N47: =IF(C47="","",VLOOKUP(D47,data,4,0)) -> إلتزام ضريبى مؤجل
A48: 0 | B48: 6165598.48 | C48: حسابات دائنة - طويلة الأجل | D48: =IF(C48="","",INDEX('Chart of Accounts'!$A$2:$A$96,MATCH(C48,'Chart of Accounts'!$B$2:$B$96,0))) -> 65 | E48: رصيد أول المدة | F48: 0/0 | G48: قيد إفتتاحية | H48: 2013-01-01 | J48: 1 | K48: 0 | L48: 2013 | N48: حسابات دائنة - طويلة الأجل
A49: 35000 | C49: إيرادات مستحقة | D49: =IF(C49="","",INDEX('Chart of Accounts'!$A$2:$A$96,MATCH(C49,'Chart of Accounts'!$B$2:$B$96,0))) -> 12 | E49: إستحقاق إيجار تيكو - يناير | G49: قيد يومية | H49: 2013-01-02 | J49: 2 | K49: =IF(H49="","",MONTH(H49)) -> 1 | L49: 2013 | M49: =IF(H49<>"",TEXT(H49,"B1MMMM"),"") -> January | N49: =IF(C49="","",VLOOKUP(D49,data,4,0)) -> مدينون وحسابات مدينة أخرى
A50: 25300 | C50: إيرادات مستحقة | D50: =IF(C50="","",INDEX('Chart of Accounts'!$A$2:$A$96,MATCH(C50,'Chart of Accounts'!$B$2:$B$96,0))) -> 12 | E50: إستحقاق إيجار يورو ديلى - يناير | G50: قيد يومية | H50: 2013-01-02 | J50: 2 | K50: 1 | L50: 2013 | M50: January | N50: مدينون وحسابات مدينة أخرى
A51: 70525 | C51: إيرادات مقدمة | D51: =IF(C51="","",INDEX('Chart of Accounts'!$A$2:$A$96,MATCH(C51,'Chart of Accounts'!$B$2:$B$96,0))) -> 42 | E51: تسوية إيجار سيلانترو - يناير | G51: قيد يومية | H51: 2013-01-02 | J51: 2 | K51: 1 | L51: 2013 | M51: January | N51: دائنون وحسابات دائنة أخرى
B52: 35000 | C52: إيرادات إيجار إستثمار عقارى - تيكو | D52: =IF(C52="","",INDEX('Chart of Accounts'!$A$2:$A$96,MATCH(C52,'Chart of Accounts'!$B$2:$B$96,0))) -> 67 | E52: إيجار تيكو - يناير | G52: قيد يومية | H52: 2013-01-02 | J52: 2 | K52: 1 | L52: 2013 | M52: January | N52: الإيرادات
B53: 25300 | C53: إيرادات إيجار إستثمار عقارى - يورو ديلى | D53: =IF(C53="","",INDEX('Chart of Accounts'!$A$2:$A$96,MATCH(C53,'Chart of Accounts'!$B$2:$B$96,0))) -> 68 | E53: إيجار يورو ديلى - يناير | G53: قيد يومية | H53: 2013-01-02 | J53: 2 | K53: 1 | L53: 2013 | M53: January | N53: الإيرادات
B54: 70525 | C54: إيرادات إيجار إستثمار عقارى - سيلانترو | D54: =IF(C54="","",INDEX('Chart of Accounts'!$A$2:$A$96,MATCH(C54,'Chart of Accounts'!$B$2:$B$96,0))) -> 69 | E54: إيجار سيلانترو - يناير | G54: قيد يومية | H54: 2013-01-02 | J54: 2 | K54: 1 | L54: 2013 | M54: January | N54: الإيرادات
A55: 183500 | C55: الأهلى سوسيتية جنرال - جنية مصرى | D55: =IF(C55="","",INDEX('Chart of Accounts'!$A$2:$A$96,MATCH(C55,'Chart of Accounts'!$B$2:$B$96,0))) -> 28 | E55: تحويل بنكى - دفعة تحت الحساب الجارى من شركة سوفيكو للإستثمارات المالية | G55: قيد يومية | H55: 2013-01-09 | J55: 9 | K55: 1 | L55: 2013 | M55: January | N55: بنوك حسابات جارية
B56: 183500 | C56: شركة سوفيكو للإستثمارات المالية (ش.م.م) | D56: =IF(C56="","",INDEX('Chart of Accounts'!$A$2:$A$96,MATCH(C56,'Chart of Accounts'!$B$2:$B$96,0))) -> 54 | E56: تحويل بنكى - دفعة تحت الحساب الجارى | G56: قيد يومية | H56: 2013-01-09 | J56: =IF(H56="","",DAY(H56)) -> 9 | K56: =IF(H56="","",MONTH(H56)) -> 1 | L56: =IF(H56="","",YEAR(H56)) -> 2013 | M56: January | N56: حسابات دائنة للشركة القابضة
A57: 183000 | C57: الشركة المصرفية العربية الدولية - جنية مصرى | D57: =IF(C57="","",INDEX('Chart of Accounts'!$A$2:$A$96,MATCH(C57,'Chart of Accounts'!$B$2:$B$96,0))) -> 29 | E57: تحويل بنكى من حساب الشركة ببنك الأهلى سوسيتية جنرال - فرع الألفى | G57: قيد يومية | H57: 2013-01-09 | J57: 9 | K57: 1 | L57: 2013 | M57: January | N57: بنوك حسابات جارية
B58: 183000 | C58: الأهلى سوسيتية جنرال - جنية مصرى | D58: =IF(C58="","",INDEX('Chart of Accounts'!$A$2:$A$96,MATCH(C58,'Chart of Accounts'!$B$2:$B$96,0))) -> 28 | E58: تحويل بنكى لحساب الشركة ببنك الشركة المصرفية العربية الدولية - فرع المهندسين | G58: قيد يومية | H58: 2013-01-09 | J58: 9 | K58: 1 | L58: 2013 | M58: January | N58: بنوك حسابات جارية
A59: 169.47 | C59: وثائق صندوق ثمـــار | D59: =IF(C59="","",INDEX('Chart of Accounts'!$A$2:$A$96,MATCH(C59,'Chart of Accounts'!$B$2:$B$96,0))) -> 24 | E59: شراء 1 وثيقة ثمار | G59: قيد يومية | H59: 2013-01-10 | J59: 10 | K59: 1 | L59: 2013 | M59: January | N59: إستثمارات فى أوراق مالية بغرض المتاجرة
B60: 169.47 | C60: الأهلى سوسيتية جنرال - جنية مصرى | D60: =IF(C60="","",INDEX('Chart of Accounts'!$A$2:$A$96,MATCH(C60,'Chart of Accounts'!$B$2:$B$96,0))) -> 28 | E60: شراء 1 وثيقة ثمار | G60: قيد يومية | H60: 2013-01-10 | J60: 10 | K60: 1 | L60: 2013 | M60: January | N60: بنوك حسابات جارية
A61: 169.66 | C61: الأهلى سوسيتية جنرال - جنية مصرى | D61: =IF(C61="","",INDEX('Chart of Accounts'!$A$2:$A$96,MATCH(C61,'Chart of Accounts'!$B$2:$B$96,0))) -> 28 | E61: إسترداد 1 وثيقة ثمار | G61: قيد يومية | H61: 2013-01-14 | J61: 14 | K61: 1 | L61: 2013 | M61: January | N61: بنوك حسابات جارية
B62: 169.08 | C62: وثائق صندوق ثمـــار | D62: =IF(C62="","",INDEX('Chart of Accounts'!$A$2:$A$96,MATCH(C62,'Chart of Accounts'!$B$2:$B$96,0))) -> 24 | E62: إسترداد 1 وثيقة ثمار | G62: قيد يومية | H62: 2013-01-14 | J62: 14 | K62: 1 | L62: 2013 | M62: January | N62: إستثمارات فى أوراق مالية بغرض المتاجرة
B63: 0.58 | C63: أرباح إسترداد وثائق صندوق ثمـــار | D63: =IF(C63="","",INDEX('Chart of Accounts'!$A$2:$A$96,MATCH(C63,'Chart of Accounts'!$B$2:$B$96,0))) -> 88 | E63: أرباح إسترداد 1 وثيقة ثمار | G63: قيد يومية | H63: 2013-01-14 | J63: 14 | K63: 1 | L63: 2013 | M63: January | N63: أرباح إسترداد إستثمارات فى أوراق مالية بغرض المتاجرة
A64: 171 | C64: هيئة التأمينات الإجتماعية | D64: =IF(C64="","",INDEX('Chart of Accounts'!$A$2:$A$96,MATCH(C64,'Chart of Accounts'!$B$2:$B$96,0))) -> 41 | E64: سداد تأمينات إجتماعية - ديسمبر | G64: قيد يومية | H64: 2013-01-14 | J64: 14 | K64: 1 | L64: 2013 | M64: January | N64: دائنون وحسابات دائنة أخرى
B65: 171 | C65: الأهلى سوسيتية جنرال - جنية مصرى | D65: =IF(C65="","",INDEX('Chart of Accounts'!$A$2:$A$96,MATCH(C65,'Chart of Accounts'!$B$2:$B$96,0))) -> 28 | E65: سداد تأمينات إجتماعية - ديسمبر | G65: قيد يومية | H65: 2013-01-14 | I65: 13624983 | J65: 14 | K65: 1 | L65: 2013 | M65: January | N65: بنوك حسابات جارية
A66: 183000 | C66: الأهلى سوسيتية جنرال - جنية مصرى | D66: =IF(C66="","",INDEX('Chart of Accounts'!$A$2:$A$96,MATCH(C66,'Chart of Accounts'!$B$2:$B$96,0))) -> 28 | E66: إيداع شيك رد قيمة التحويل البنكى لحساب الشركة ببنك الشركة المصرفية العربية الدولية - فرع المهندسين | G66: قيد يومية | H66: 2013-01-20 | J66: 20 | K66: 1 | L66: 2013 | M66: January | N66: بنوك حسابات جارية
B67: 183000 | C67: الشركة المصرفية العربية الدولية - جنية مصرى | D67: =IF(C67="","",INDEX('Chart of Accounts'!$A$2:$A$96,MATCH(C67,'Chart of Accounts'!$B$2:$B$96,0))) -> 29 | E67: رد قيمة التحويل البنكى من حساب الشركة ببنك الأهلى سوسيتية جنرال - فرع الألفى | G67: قيد يومية | H67: 2013-01-20 | J67: 20 | K67: 1 | L67: 2013 | M67: January | N67: بنوك حسابات جارية
A68: 32210.2 | C68: الشركة المصرفية العربية الدولية - جنية مصرى | D68: =IF(C68="","",INDEX('Chart of Accounts'!$A$2:$A$96,MATCH(C68,'Chart of Accounts'!$B$2:$B$96,0))) -> 29 | E68: إيداع شيك تيكو رقم 9287680 - إيجار يناير | G68: قيد يومية | H68: 2013-01-21 | J68: =IF(H68="","",DAY(H68)) -> 21 | K68: =IF(H68="","",MONTH(H68)) -> 1 | L68: =IF(H68="","",YEAR(H68)) -> 2013 | M68: =IF(H68<>"",TEXT(H68,"B1MMMM"),"") -> January | N68: =IF(C68="","",VLOOKUP(D68,data,4,0)) -> بنوك حسابات جارية
B69: 32210.2 | C69: إيرادات مستحقة | D69: =IF(C69="","",INDEX('Chart of Accounts'!$A$2:$A$96,MATCH(C69,'Chart of Accounts'!$B$2:$B$96,0))) -> 12 | E69: إيداع شيك تيكو رقم 9287680 - إيجار يناير | G69: قيد يومية | H69: 2013-01-21 | J69: =IF(H69="","",DAY(H69)) -> 21 | K69: =IF(H69="","",MONTH(H69)) -> 1 | L69: =IF(H69="","",YEAR(H69)) -> 2013 | M69: =IF(H69<>"",TEXT(H69,"B1MMMM"),"") -> January | N69: =IF(C69="","",VLOOKUP(D69,data,4,0)) -> مدينون وحسابات مدينة أخرى
A70: 2789.8 | C70: الشركة المصرفية العربية الدولية - جنية مصرى | D70: =IF(C70="","",INDEX('Chart of Accounts'!$A$2:$A$96,MATCH(C70,'Chart of Accounts'!$B$2:$B$96,0))) -> 29 | E70: إيداع شيك تيكو رقم 14845180 - إيجار يناير | G70: قيد يومية | H70: 2013-01-22 | J70: =IF(H70="","",DAY(H70)) -> 22 | K70: =IF(H70="","",MONTH(H70)) -> 1 | L70: =IF(H70="","",YEAR(H70)) -> 2013 | M70: =IF(H70<>"",TEXT(H70,"B1MMMM"),"") -> January | N70: =IF(C70="","",VLOOKUP(D70,data,4,0)) -> بنوك حسابات جارية
B71: 2789.8 | C71: إيرادات مستحقة | D71: =IF(C71="","",INDEX('Chart of Accounts'!$A$2:$A$96,MATCH(C71,'Chart of Accounts'!$B$2:$B$96,0))) -> 12 | E71: إيداع شيك تيكو رقم 14845180 - إيجار يناير | G71: قيد يومية | H71: 2013-01-22 | J71: =IF(H71="","",DAY(H71)) -> 22 | K71: =IF(H71="","",MONTH(H71)) -> 1 | L71: =IF(H71="","",YEAR(H71)) -> 2013 | M71: =IF(H71<>"",TEXT(H71,"B1MMMM"),"") -> January | N71: =IF(C71="","",VLOOKUP(D71,data,4,0)) -> مدينون وحسابات مدينة أخرى
A72: 182906.5 | C72: وثائق صندوق ثمـــار | D72: =IF(C72="","",INDEX('Chart of Accounts'!$A$2:$A$96,MATCH(C72,'Chart of Accounts'!$B$2:$B$96,0))) -> 24 | E72: شراء 1074 وثيقة ثمار | G72: قيد يومية | H72: 2013-01-27 | J72: 27 | K72: 1 | L72: 2013 | M72: January | N72: إستثمارات فى أوراق مالية بغرض المتاجرة
B73: 182906.5 | C73: الأهلى سوسيتية جنرال - جنية مصرى | D73: =IF(C73="","",INDEX('Chart of Accounts'!$A$2:$A$96,MATCH(C73,'Chart of Accounts'!$B$2:$B$96,0))) -> 28 | E73: شراء 1074 وثيقة ثمار | G73: قيد يومية | H73: 2013-01-27 | J73: 27 | K73: 1 | L73: 2013 | M73: January | N73: بنوك حسابات جارية
A74: 6645.8 | C74: الأهلى سوسيتية جنرال - جنية مصرى | D74: =IF(C74="","",INDEX('Chart of Accounts'!$A$2:$A$96,MATCH(C74,'Chart of Accounts'!$B$2:$B$96,0))) -> 28 | E74: إسترداد 39 وثيقة ثمار | G74: قيد يومية | H74: 2013-01-29 | J74: 29 | K74: 1 | L74: 2013 | M74: January | N74: بنوك حسابات جارية
B75: 6641.68 | C75: وثائق صندوق ثمـــار | D75: =IF(C75="","",INDEX('Chart of Accounts'!$A$2:$A$96,MATCH(C75,'Chart of Accounts'!$B$2:$B$96,0))) -> 24 | E75: إسترداد 39 وثيقة ثمار | G75: قيد يومية | H75: 2013-01-29 | J75: 29 | K75: 1 | L75: 2013 | M75: January | N75: إستثمارات فى أوراق مالية بغرض المتاجرة
B76: 4.12 | C76: أرباح إسترداد وثائق صندوق ثمـــار | D76: =IF(C76="","",INDEX('Chart of Accounts'!$A$2:$A$96,MATCH(C76,'Chart of Accounts'!$B$2:$B$96,0))) -> 88 | E76: أرباح إسترداد 39 وثيقة ثمار | G76: قيد يومية | H76: 2013-01-29 | J76: 29 | K76: 1 | L76: 2013 | M76: January | N76: أرباح إسترداد إستثمارات فى أوراق مالية بغرض المتاجرة
A77: 3600 | C77: النقدية بالصندوق | D77: =IF(C77="","",INDEX('Chart of Accounts'!$A$2:$A$96,MATCH(C77,'Chart of Accounts'!$B$2:$B$96,0))) -> 26 | E77: تمويل خزينة الشركة | G77: قيد يومية | H77: 2013-01-29 | J77: 29 | K77: 1 | L77: 2013 | M77: January | N77: النقدية بالصندوق
B78: 3600 | C78: الأهلى سوسيتية جنرال - جنية مصرى | D78: =IF(C78="","",INDEX('Chart of Accounts'!$A$2:$A$96,MATCH(C78,'Chart of Accounts'!$B$2:$B$96,0))) -> 28 | E78: تمويل خزينة الشركة | G78: قيد يومية | H78: 2013-01-29 | J78: 29 | K78: 1 | L78: 2013 | M78: January | N78: بنوك حسابات جارية
A79: 3000 | C79: النقدية بالصندوق | D79: =IF(C79="","",INDEX('Chart of Accounts'!$A$2:$A$96,MATCH(C79,'Chart of Accounts'!$B$2:$B$96,0))) -> 26 | E79: تمويل خزينة الشركة | G79: قيد يومية | H79: 2013-01-29 | J79: 29 | K79: 1 | L79: 2013 | M79: January | N79: النقدية بالصندوق
B80: 3000 | C80: الأهلى سوسيتية جنرال - جنية مصرى | D80: =IF(C80="","",INDEX('Chart of Accounts'!$A$2:$A$96,MATCH(C80,'Chart of Accounts'!$B$2:$B$96,0))) -> 28 | E80: تمويل خزينة الشركة | G80: قيد يومية | H80: 2013-01-29 | J80: 29 | K80: 1 | L80: 2013 | M80: January | N80: بنوك حسابات جارية
A81: 3879 | C81: أجور ومرتبات | D81: =IF(C81="","",INDEX('Chart of Accounts'!$A$2:$A$96,MATCH(C81,'Chart of Accounts'!$B$2:$B$96,0))) -> 82 | E81: أجور ومرتبات - يناير | G81: قيد يومية | H81: 2013-01-30 | J81: =IF(H81="","",DAY(H81)) -> 30 | K81: 1 | L81: =IF(H81="","",YEAR(H81)) -> 2013 | M81: January | N81: =IF(C81="","",VLOOKUP(D81,data,4,0)) -> أجور ومرتبات
B82: 245 | C82: هيئة التأمينات الإجتماعية | D82: =IF(C82="","",INDEX('Chart of Accounts'!$A$2:$A$96,MATCH(C82,'Chart of Accounts'!$B$2:$B$96,0))) -> 41 | E82: تأمينات إجتماعية - يناير | G82: قيد يومية | H82: 2013-01-30 | J82: 30 | K82: 1 | L82: 2013 | M82: January | N82: دائنون وحسابات دائنة أخرى
B83: 3634 | C83: النقدية بالصندوق | D83: =IF(C83="","",INDEX('Chart of Accounts'!$A$2:$A$96,MATCH(C83,'Chart of Accounts'!$B$2:$B$96,0))) -> 26 | E83: سداد أجور ومرتبات - يناير | G83: قيد يومية | H83: 2013-01-30 | J83: 30 | K83: 1 | L83: 2013 | M83: January | N83: النقدية بالصندوق
A84: 2900 | C84: إكراميات | D84: =IF(C84="","",INDEX('Chart of Accounts'!$A$2:$A$96,MATCH(C84,'Chart of Accounts'!$B$2:$B$96,0))) -> 80 | E84: إكراميات بمعرفة المهندس / محمد عثمان | G84: قيد يومية | H84: 2013-01-30 | J84: =IF(H84="","",DAY(H84)) -> 30 | K84: =IF(H84="","",MONTH(H84)) -> 1 | L84: =IF(H84="","",YEAR(H84)) -> 2013 | M84: =IF(H84<>"",TEXT(H84,"B1MMMM"),"") -> January | N84: =IF(C84="","",VLOOKUP(D84,data,4,0)) -> مصروفات إدارية وعمومية
B85: 2900 | C85: النقدية بالصندوق | D85: =IF(C85="","",INDEX('Chart of Accounts'!$A$2:$A$96,MATCH(C85,'Chart of Accounts'!$B$2:$B$96,0))) -> 26 | E85: سداد إكراميات بمعرفة المهندس / محمد عثمان | G85: قيد يومية | H85: 2013-01-30 | J85: =IF(H85="","",DAY(H85)) -> 30 | K85: =IF(H85="","",MONTH(H85)) -> 1 | L85: =IF(H85="","",YEAR(H85)) -> 2013 | M85: =IF(H85<>"",TEXT(H85,"B1MMMM"),"") -> January | N85: =IF(C85="","",VLOOKUP(D85,data,4,0)) -> النقدية بالصندوق
A86: 112956.66 | C86: مصروفات إيجار تمويلى | D86: =IF(C86="","",INDEX('Chart of Accounts'!$A$2:$A$96,MATCH(C86,'Chart of Accounts'!$B$2:$B$96,0))) -> 70 | E86: إثبات قيمة إستئجار محل سيلانترو فرع نادى الصيد - يناير | G86: قيد يومية | H86: 2013-01-31 | J86: =IF(H86="","",DAY(H86)) -> 31 | K86: =IF(H86="","",MONTH(H86)) -> 1 | L86: =IF(H86="","",YEAR(H86)) -> 2013 | M86: =IF(H86<>"",TEXT(H86,"B1MMMM"),"") -> January | N86: =IF(C86="","",VLOOKUP(D86,data,4,0)) -> مصروفات إيجار تمويلى
A87: 18309.86 | C87: مصروفات إيجار تمويلى | D87: =IF(C87="","",INDEX('Chart of Accounts'!$A$2:$A$96,MATCH(C87,'Chart of Accounts'!$B$2:$B$96,0))) -> 70 | E87: إستهلاك مقدم تعاقد إستئجار محل سيلانترو فرع نادى الصيد - يناير | G87: قيد يومية | H87: 2013-01-31 | J87: 31 | K87: 1 | L87: 2013 | M87: January | N87: مصروفات إيجار تمويلى
B88: 112956.66 | C88: أقساط تأجير تمويلى مؤجلة الدفع - قصيرة الأجل | D88: =IF(C88="","",INDEX('Chart of Accounts'!$A$2:$A$96,MATCH(C88,'Chart of Accounts'!$B$2:$B$96,0))) -> 18 | E88: إثبات قيمة إستئجار محل سيلانترو فرع نادى الصيد - يناير | G88: قيد يومية | H88: 2013-01-31 | J88: 31 | K88: 1 | L88: 2013 | M88: January | N88: مدينون وحسابات مدينة أخرى
B89: 18309.86 | C89: أقساط تأجير تمويلى مؤجلة الدفع - قصيرة الأجل | D89: =IF(C89="","",INDEX('Chart of Accounts'!$A$2:$A$96,MATCH(C89,'Chart of Accounts'!$B$2:$B$96,0))) -> 18 | E89: إستهلاك مقدم تعاقد إستئجار محل سيلانترو فرع نادى الصيد - يناير | G89: قيد يومية | H89: 2013-01-31 | J89: 31 | K89: 1 | L89: 2013 | M89: January | N89: مدينون وحسابات مدينة أخرى
A90: 1221.08 | C90: أرباح مؤجلة من البيع وإعادة التأجير | D90: =IF(C90="","",INDEX('Chart of Accounts'!$A$2:$A$96,MATCH(C90,'Chart of Accounts'!$B$2:$B$96,0))) -> 48 | E90: إستهلاك أرباح بيع إستثمارات عقارية - مؤجلة (يناير) | G90: قيد يومية | H90: 2013-01-31 | J90: 31 | K90: 1 | L90: 2013 | M90: January | N90: دائنون وحسابات دائنة أخرى
B91: 1221.08 | C91: أرباح مؤجلة من البيع وإعادة التأجير - قائمة الدخل | D91: =IF(C91="","",INDEX('Chart of Accounts'!$A$2:$A$96,MATCH(C91,'Chart of Accounts'!$B$2:$B$96,0))) -> 92 | E91: إستهلاك أرباح بيع إستثمارات عقارية - مؤجلة (يناير) | G91: قيد يومية | H91: 2013-01-31 | J91: 31 | K91: 1 | L91: 2013 | M91: January | N91: أرباح مؤجلة من البيع وإعادة التأجير
A92: 284.13 | C92: مصاريف علاج | D92: =IF(C92="","",INDEX('Chart of Accounts'!$A$2:$A$96,MATCH(C92,'Chart of Accounts'!$B$2:$B$96,0))) -> 75 | E92: تسوية م . وثيقة التأمين الطبى (المدفوع مقدماً) - يناير | G92: قيد يومية | H92: 2013-01-31 | J92: =IF(H92="","",DAY(H92)) -> 31 | K92: =IF(H92="","",MONTH(H92)) -> 1 | L92: =IF(H92="","",YEAR(H92)) -> 2013 | M92: =IF(H92<>"",TEXT(H92,"B1MMMM"),"") -> January | N92: =IF(C92="","",VLOOKUP(D92,data,4,0)) -> مصروفات إدارية وعمومية
B93: 284.13 | C93: مصروفات مدفوعة مقدماً | D93: =IF(C93="","",INDEX('Chart of Accounts'!$A$2:$A$96,MATCH(C93,'Chart of Accounts'!$B$2:$B$96,0))) -> 13 | E93: تسوية م . وثيقة التأمين الطبى - يناير | G93: قيد يومية | H93: 2013-01-31 | J93: =IF(H93="","",DAY(H93)) -> 31 | K93: =IF(H93="","",MONTH(H93)) -> 1 | L93: =IF(H93="","",YEAR(H93)) -> 2013 | M93: =IF(H93<>"",TEXT(H93,"B1MMMM"),"") -> January | N93: =IF(C93="","",VLOOKUP(D93,data,4,0)) -> مدينون وحسابات مدينة أخرى
A94: 1188.96 | C94: إهلاك أجهزة ومعدات | D94: =IF(C94="","",INDEX('Chart of Accounts'!$A$2:$A$96,MATCH(C94,'Chart of Accounts'!$B$2:$B$96,0))) -> 84 | E94: إهلاك وحدة مناولة الهواء - يناير | G94: قيد يومية | H94: 2013-01-31 | J94: 31 | K94: 1 | L94: 2013 | M94: January | N94: إهلاك أصول ثابتة
A95: 26096.07 | C95: إهلاك مبانى | D95: =IF(C95="","",INDEX('Chart of Accounts'!$A$2:$A$96,MATCH(C95,'Chart of Accounts'!$B$2:$B$96,0))) -> 86 | E95: إهلاك مبنى القرية الذكية - يناير | G95: قيد يومية | H95: 2013-01-31 | J95: 31 | K95: 1 | L95: 2013 | M95: January | N95: إهلاك إستثمارات عقارية
A96: 10191.78 | C96: إهلاك مبانى | D96: =IF(C96="","",INDEX('Chart of Accounts'!$A$2:$A$96,MATCH(C96,'Chart of Accounts'!$B$2:$B$96,0))) -> 86 | E96: إهلاك مبنى الزمالك - يناير | G96: قيد يومية | H96: 2013-01-31 | J96: 31 | K96: 1 | L96: 2013 | M96: January | N96: إهلاك إستثمارات عقارية
B97: 1188.96 | C97: مجمع إهلاك أجهزة ومعدات | D97: =IF(C97="","",INDEX('Chart of Accounts'!$A$2:$A$96,MATCH(C97,'Chart of Accounts'!$B$2:$B$96,0))) -> 4 | E97: إهلاك وحدة مناولة الهواء - يناير | G97: قيد يومية | H97: 2013-01-31 | J97: 31 | K97: 1 | L97: 2013 | M97: January | N97: مجمع إهلاك أصول ثابتة
B98: 26096.07 | C98: مجمع إهلاك مبانى | D98: =IF(C98="","",INDEX('Chart of Accounts'!$A$2:$A$96,MATCH(C98,'Chart of Accounts'!$B$2:$B$96,0))) -> 8 | E98: إهلاك مبنى القرية الذكية - يناير | G98: قيد يومية | H98: 2013-01-31 | J98: 31 | K98: 1 | L98: 2013 | M98: January | N98: مجمع إهلاك إستثمارات عقارية
B99: 10191.78 | C99: مجمع إهلاك مبانى | D99: =IF(C99="","",INDEX('Chart of Accounts'!$A$2:$A$96,MATCH(C99,'Chart of Accounts'!$B$2:$B$96,0))) -> 8 | E99: إهلاك مبنى الزمالك - يناير | G99: قيد يومية | H99: 2013-01-31 | J99: 31 | K99: 1 | L99: 2013 | M99: January | N99: مجمع إهلاك إستثمارات عقارية
A100: 15 | C100: مصاريف بنكية | D100: =IF(C100="","",INDEX('Chart of Accounts'!$A$2:$A$96,MATCH(C100,'Chart of Accounts'!$B$2:$B$96,0))) -> 78 | E100: م. إنترنت بنكى - الأهلى سوسيتية جنرال | G100: قيد يومية | H100: 2013-01-31 | J100: =IF(H100="","",DAY(H100)) -> 31 | K100: =IF(H100="","",MONTH(H100)) -> 1 | L100: =IF(H100="","",YEAR(H100)) -> 2013 | M100: =IF(H100<>"",TEXT(H100,"B1MMMM"),"") -> January | N100: =IF(C100="","",VLOOKUP(D100,data,4,0)) -> مصروفات إدارية وعمومية
A101: 390 | C101: مصاريف بنكية | D101: =IF(C101="","",INDEX('Chart of Accounts'!$A$2:$A$96,MATCH(C101,'Chart of Accounts'!$B$2:$B$96,0))) -> 78 | E101: م. تحويل بنكى لحساب الشركة ببنك الشركة المصرفية العربية الدولية - فرع المهندسين - الأهلى سوسيتية جنرال | G101: قيد يومية | H101: 2013-01-31 | J101: =IF(H101="","",DAY(H101)) -> 31 | K101: 1 | L101: =IF(H101="","",YEAR(H101)) -> 2013 | M101: January | N101: مصروفات إدارية وعمومية
A102: 50 | C102: مصاريف بنكية | D102: =IF(C102="","",INDEX('Chart of Accounts'!$A$2:$A$96,MATCH(C102,'Chart of Accounts'!$B$2:$B$96,0))) -> 78 | E102: مصاريف مصادقة أرصدة الحسابات السنوية - الأهلى سوسيتية جنرال | G102: قيد يومية | H102: 2013-01-31 | J102: 31 | K102: 1 | L102: 2013 | M102: January | N102: =IF(C102="","",VLOOKUP(D102,data,4,0)) -> مصروفات إدارية وعمومية
A103: 7 | C103: مصاريف بنكية | D103: =IF(C103="","",INDEX('Chart of Accounts'!$A$2:$A$96,MATCH(C103,'Chart of Accounts'!$B$2:$B$96,0))) -> 78 | E103: مصاريف تحصيل شيك - الأهلى سوسيتية جنرال | G103: قيد يومية | H103: 2013-01-31 | J103: 31 | K103: 1 | L103: 2013 | M103: January | N103: مصروفات إدارية وعمومية
A104: 5 | C104: مصاريف بنكية | D104: =IF(C104="","",INDEX('Chart of Accounts'!$A$2:$A$96,MATCH(C104,'Chart of Accounts'!$B$2:$B$96,0))) -> 78 | E104: م. كشف حساب - الأهلى سوسيتية جنرال | G104: قيد يومية | H104: 2013-01-31 | J104: 31 | K104: 1 | L104: 2013 | M104: January | N104: مصروفات إدارية وعمومية
A105: 222 | C105: مصاريف بنكية | D105: =IF(C105="","",INDEX('Chart of Accounts'!$A$2:$A$96,MATCH(C105,'Chart of Accounts'!$B$2:$B$96,0))) -> 78 | E105: م. تحصيل شيك شركة - دليشوس إنك - الشركة المصرفية العربية الدولية | G105: قيد يومية | H105: 2013-01-31 | J105: 31 | K105: 1 | L105: 2013 | M105: January | N105: مصروفات إدارية وعمومية
A106: 222 | C106: مصاريف بنكية | D106: =IF(C106="","",INDEX('Chart of Accounts'!$A$2:$A$96,MATCH(C106,'Chart of Accounts'!$B$2:$B$96,0))) -> 78 | E106: م. تحصيل شيك شركة - دليشوس إنك - الشركة المصرفية العربية الدولية | G106: قيد يومية | H106: 2013-01-31 | J106: 31 | K106: 1 | L106: 2013 | M106: January | N106: مصروفات إدارية وعمومية
A107: 20 | C107: مصاريف بنكية | D107: =IF(C107="","",INDEX('Chart of Accounts'!$A$2:$A$96,MATCH(C107,'Chart of Accounts'!$B$2:$B$96,0))) -> 78 | E107: م. تحويل بنكى من حساب الشركة ببنك الأهلى سوسيتية جنرال - فرع الألفى - الشركة المصرفية العربية الدولية | G107: قيد يومية | H107: 2013-01-31 | J107: 31 | K107: 1 | L107: 2013 | M107: January | N107: مصروفات إدارية وعمومية
A108: 1150 | C108: مصاريف بنكية | D108: =IF(C108="","",INDEX('Chart of Accounts'!$A$2:$A$96,MATCH(C108,'Chart of Accounts'!$B$2:$B$96,0))) -> 78 | E108: فوائد تأخير - الشركة المصرفية العربية الدولية | G108: قيد يومية | H108: 2013-01-31 | J108: 31 | K108: 1 | L108: 2013 | M108: January | N108: مصروفات إدارية وعمومية
A109: 43 | C109: مصاريف بنكية | D109: =IF(C109="","",INDEX('Chart of Accounts'!$A$2:$A$96,MATCH(C109,'Chart of Accounts'!$B$2:$B$96,0))) -> 78 | E109: م. تحصيل شيك تيكو - الشركة المصرفية العربية الدولية | G109: قيد يومية | H109: 2013-01-31 | J109: 31 | K109: 1 | L109: 2013 | M109: January | N109: مصروفات إدارية وعمومية
A110: 22 | C110: مصاريف بنكية | D110: =IF(C110="","",INDEX('Chart of Accounts'!$A$2:$A$96,MATCH(C110,'Chart of Accounts'!$B$2:$B$96,0))) -> 78 | E110: م. تحصيل شيك تيكو - الشركة المصرفية العربية الدولية | G110: قيد يومية | H110: 2013-01-31 | J110: 31 | K110: 1 | L110: 2013 | M110: January | N110: مصروفات إدارية وعمومية
A111: 323.28 | C111: مصاريف بنكية | D111: =IF(C111="","",INDEX('Chart of Accounts'!$A$2:$A$96,MATCH(C111,'Chart of Accounts'!$B$2:$B$96,0))) -> 78 | E111: م. بنكية - الشركة المصرفية العربية الدولية | G111: قيد يومية | H111: 2013-01-31 | J111: 31 | K111: 1 | L111: 2013 | M111: January | N111: مصروفات إدارية وعمومية
A112: 103.42 | C112: مصاريف بنكية | D112: =IF(C112="","",INDEX('Chart of Accounts'!$A$2:$A$96,MATCH(C112,'Chart of Accounts'!$B$2:$B$96,0))) -> 78 | E112: م. بنكية - الشركة المصرفية العربية الدولية | G112: قيد يومية | H112: 2013-01-31 | J112: 31 | K112: 1 | L112: 2013 | M112: January | N112: مصروفات إدارية وعمومية
B113: 15 | C113: الأهلى سوسيتية جنرال - جنية مصرى | D113: =IF(C113="","",INDEX('Chart of Accounts'!$A$2:$A$96,MATCH(C113,'Chart of Accounts'!$B$2:$B$96,0))) -> 28 | E113: م. إنترنت بنكى | G113: قيد يومية | H113: 2013-01-31 | J113: 31 | K113: =IF(H113="","",MONTH(H113)) -> 1 | L113: 2013 | M113: =IF(H113<>"",TEXT(H113,"B1MMMM"),"") -> January | N113: =IF(C113="","",VLOOKUP(D113,data,4,0)) -> بنوك حسابات جارية
B114: 390 | C114: الأهلى سوسيتية جنرال - جنية مصرى | D114: =IF(C114="","",INDEX('Chart of Accounts'!$A$2:$A$96,MATCH(C114,'Chart of Accounts'!$B$2:$B$96,0))) -> 28 | E114: م. تحويل بنكى لحساب الشركة ببنك الشركة المصرفية العربية الدولية - فرع المهندسين | G114: قيد يومية | H114: 2013-01-31 | J114: =IF(H114="","",DAY(H114)) -> 31 | K114: =IF(H114="","",MONTH(H114)) -> 1 | L114: =IF(H114="","",YEAR(H114)) -> 2013 | M114: =IF(H114<>"",TEXT(H114,"B1MMMM"),"") -> January | N114: =IF(C114="","",VLOOKUP(D114,data,4,0)) -> بنوك حسابات جارية
B115: 50 | C115: الأهلى سوسيتية جنرال - جنية مصرى | D115: =IF(C115="","",INDEX('Chart of Accounts'!$A$2:$A$96,MATCH(C115,'Chart of Accounts'!$B$2:$B$96,0))) -> 28 | E115: مصاريف مصادقة أرصدة الحسابات السنوية | G115: قيد يومية | H115: 2013-01-31 | J115: =IF(H115="","",DAY(H115)) -> 31 | K115: =IF(H115="","",MONTH(H115)) -> 1 | L115: =IF(H115="","",YEAR(H115)) -> 2013 | M115: =IF(H115<>"",TEXT(H115,"B1MMMM"),"") -> January | N115: =IF(C115="","",VLOOKUP(D115,data,4,0)) -> بنوك حسابات جارية
B116: 7 | C116: الأهلى سوسيتية جنرال - جنية مصرى | D116: =IF(C116="","",INDEX('Chart of Accounts'!$A$2:$A$96,MATCH(C116,'Chart of Accounts'!$B$2:$B$96,0))) -> 28 | E116: مصاريف تحصيل شيك | G116: قيد يومية | H116: 2013-01-31 | J116: 31 | K116: 1 | L116: 2013 | M116: January | N116: =IF(C116="","",VLOOKUP(D116,data,4,0)) -> بنوك حسابات جارية
B117: 5 | C117: الأهلى سوسيتية جنرال - جنية مصرى | D117: =IF(C117="","",INDEX('Chart of Accounts'!$A$2:$A$96,MATCH(C117,'Chart of Accounts'!$B$2:$B$96,0))) -> 28 | E117: م. كشف حساب | G117: قيد يومية | H117: 2013-01-31 | J117: 31 | K117: 1 | L117: 2013 | M117: January | N117: بنوك حسابات جارية
B118: 222 | C118: الشركة المصرفية العربية الدولية - جنية مصرى | D118: =IF(C118="","",INDEX('Chart of Accounts'!$A$2:$A$96,MATCH(C118,'Chart of Accounts'!$B$2:$B$96,0))) -> 29 | E118: م. تحصيل شيك شركة - دليشوس إنك | G118: قيد يومية | H118: 2013-01-31 | J118: 31 | K118: 1 | L118: 2013 | M118: January | N118: بنوك حسابات جارية
B119: 222 | C119: الشركة المصرفية العربية الدولية - جنية مصرى | D119: =IF(C119="","",INDEX('Chart of Accounts'!$A$2:$A$96,MATCH(C119,'Chart of Accounts'!$B$2:$B$96,0))) -> 29 | E119: م. تحصيل شيك شركة - دليشوس إنك | G119: قيد يومية | H119: 2013-01-31 | J119: 31 | K119: 1 | L119: 2013 | M119: January | N119: بنوك حسابات جارية
B120: 20 | C120: الشركة المصرفية العربية الدولية - جنية مصرى | D120: =IF(C120="","",INDEX('Chart of Accounts'!$A$2:$A$96,MATCH(C120,'Chart of Accounts'!$B$2:$B$96,0))) -> 29 | E120: م. تحويل بنكى من حساب الشركة ببنك الأهلى سوسيتية جنرال - فرع الألفى | G120: قيد يومية | H120: 2013-01-31 | J120: 31 | K120: 1 | L120: 2013 | M120: January | N120: بنوك حسابات جارية
B121: 1150 | C121: الشركة المصرفية العربية الدولية - جنية مصرى | D121: =IF(C121="","",INDEX('Chart of Accounts'!$A$2:$A$96,MATCH(C121,'Chart of Accounts'!$B$2:$B$96,0))) -> 29 | E121: فوائد تأخير | G121: قيد يومية | H121: 2013-01-31 | J121: 31 | K121: 1 | L121: 2013 | M121: January | N121: بنوك حسابات جارية
B122: 43 | C122: الشركة المصرفية العربية الدولية - جنية مصرى | D122: =IF(C122="","",INDEX('Chart of Accounts'!$A$2:$A$96,MATCH(C122,'Chart of Accounts'!$B$2:$B$96,0))) -> 29 | E122: م. تحصيل شيك تيكو | G122: قيد يومية | H122: 2013-01-31 | J122: 31 | K122: 1 | L122: 2013 | M122: January | N122: بنوك حسابات جارية
B123: 22 | C123: الشركة المصرفية العربية الدولية - جنية مصرى | D123: =IF(C123="","",INDEX('Chart of Accounts'!$A$2:$A$96,MATCH(C123,'Chart of Accounts'!$B$2:$B$96,0))) -> 29 | E123: م. تحصيل شيك تيكو | G123: قيد يومية | H123: 2013-01-31 | J123: 31 | K123: 1 | L123: 2013 | M123: January | N123: بنوك حسابات جارية
B124: 323.28 | C124: الشركة المصرفية العربية الدولية - جنية مصرى | D124: =IF(C124="","",INDEX('Chart of Accounts'!$A$2:$A$96,MATCH(C124,'Chart of Accounts'!$B$2:$B$96,0))) -> 29 | E124: م. بنكية | G124: قيد يومية | H124: 2013-01-31 | J124: 31 | K124: 1 | L124: 2013 | M124: January | N124: بنوك حسابات جارية
B125: 103.42 | C125: الشركة المصرفية العربية الدولية - جنية مصرى | D125: =IF(C125="","",INDEX('Chart of Accounts'!$A$2:$A$96,MATCH(C125,'Chart of Accounts'!$B$2:$B$96,0))) -> 29 | E125: م. بنكية | G125: قيد يومية | H125: 2013-01-31 | J125: 31 | K125: 1 | L125: 2013 | M125: January | N125: بنوك حسابات جارية
A126: 35000 | C126: إيرادات مستحقة | D126: =IF(C126="","",INDEX('Chart of Accounts'!$A$2:$A$96,MATCH(C126,'Chart of Accounts'!$B$2:$B$96,0))) -> 12 | E126: إستحقاق إيجار تيكو - فبراير | G126: قيد يومية | H126: 2013-02-01 | J126: 1 | K126: 2 | L126: 2013 | M126: February | N126: مدينون وحسابات مدينة أخرى
A127: 25300 | C127: إيرادات مستحقة | D127: =IF(C127="","",INDEX('Chart of Accounts'!$A$2:$A$96,MATCH(C127,'Chart of Accounts'!$B$2:$B$96,0))) -> 12 | E127: إستحقاق إيجار يورو ديلى - فبراير | G127: قيد يومية | H127: 2013-02-01 | J127: 1 | K127: 2 | L127: 2013 | M127: February | N127: مدينون وحسابات مدينة أخرى
A128: 70525 | C128: إيرادات مقدمة | D128: =IF(C128="","",INDEX('Chart of Accounts'!$A$2:$A$96,MATCH(C128,'Chart of Accounts'!$B$2:$B$96,0))) -> 42 | E128: تسوية إيجار سيلانترو - فبراير | G128: قيد يومية | H128: 2013-02-01 | J128: 1 | K128: 2 | L128: 2013 | M128: February | N128: دائنون وحسابات دائنة أخرى
B129: 35000 | C129: إيرادات إيجار إستثمار عقارى - تيكو | D129: =IF(C129="","",INDEX('Chart of Accounts'!$A$2:$A$96,MATCH(C129,'Chart of Accounts'!$B$2:$B$96,0))) -> 67 | E129: إيجار تيكو - فبراير | G129: قيد يومية | H129: 2013-02-01 | J129: 1 | K129: 2 | L129: 2013 | M129: February | N129: الإيرادات
B130: 25300 | C130: إيرادات إيجار إستثمار عقارى - يورو ديلى | D130: =IF(C130="","",INDEX('Chart of Accounts'!$A$2:$A$96,MATCH(C130,'Chart of Accounts'!$B$2:$B$96,0))) -> 68 | E130: إيجار يورو ديلى - فبراير | G130: قيد يومية | H130: 2013-02-01 | J130: 1 | K130: 2 | L130: 2013 | M130: February | N130: الإيرادات
B131: 70525 | C131: إيرادات إيجار إستثمار عقارى - سيلانترو | D131: =IF(C131="","",INDEX('Chart of Accounts'!$A$2:$A$96,MATCH(C131,'Chart of Accounts'!$B$2:$B$96,0))) -> 69 | E131: إيجار سيلانترو - فبراير | G131: قيد يومية | H131: 2013-02-01 | J131: 1 | K131: 2 | L131: 2013 | M131: February | N131: الإيرادات
A132: 25279 | C132: الشركة المصرفية العربية الدولية - جنية مصرى | D132: =IF(C132="","",INDEX('Chart of Accounts'!$A$2:$A$96,MATCH(C132,'Chart of Accounts'!$B$2:$B$96,0))) -> 29 | E132: تحويل بنكى يورو ديلى - إيجار يناير | G132: قيد يومية | H132: 2013-02-03 | J132: 3 | K132: 2 | L132: 2013 | M132: February | N132: =IF(C132="","",VLOOKUP(D132,data,4,0)) -> بنوك حسابات جارية
A133: 21 | C133: مصاريف بنكية | D133: =IF(C133="","",INDEX('Chart of Accounts'!$A$2:$A$96,MATCH(C133,'Chart of Accounts'!$B$2:$B$96,0))) -> 78 | E133: م. تحويل بنكى يورو ديلى - إيجار يناير | G133: قيد يومية | H133: 2013-02-03 | J133: 3 | K133: 2 | L133: 2013 | M133: February | N133: مصروفات إدارية وعمومية
B134: 25300 | C134: إيرادات مستحقة | D134: =IF(C134="","",INDEX('Chart of Accounts'!$A$2:$A$96,MATCH(C134,'Chart of Accounts'!$B$2:$B$96,0))) -> 12 | E134: تحويل بنكى يورو ديلى - إيجار يناير | G134: قيد يومية | H134: 2013-02-03 | J134: 3 | K134: 2 | L134: 2013 | M134: February | N134: مدينون وحسابات مدينة أخرى
A135: 35000 | C135: الشركة المصرفية العربية الدولية - جنية مصرى | D135: =IF(C135="","",INDEX('Chart of Accounts'!$A$2:$A$96,MATCH(C135,'Chart of Accounts'!$B$2:$B$96,0))) -> 29 | E135: إيداع شيك تيكو رقم 9287780 - إيجار فبراير | G135: قيد يومية | H135: 2013-02-07 | J135: 7 | K135: 2 | L135: 2013 | M135: February | N135: بنوك حسابات جارية
B136: 35000 | C136: إيرادات مستحقة | D136: =IF(C136="","",INDEX('Chart of Accounts'!$A$2:$A$96,MATCH(C136,'Chart of Accounts'!$B$2:$B$96,0))) -> 12 | E136: إيداع شيك تيكو رقم 9287780 - إيجار فبراير | G136: قيد يومية | H136: 2013-02-07 | J136: 7 | K136: 2 | L136: 2013 | M136: February | N136: مدينون وحسابات مدينة أخرى
A137: 342.04 | C137: الأهلى سوسيتية جنرال - جنية مصرى | D137: =IF(C137="","",INDEX('Chart of Accounts'!$A$2:$A$96,MATCH(C137,'Chart of Accounts'!$B$2:$B$96,0))) -> 28 | E137: إسترداد 2 وثيقة ثمار | G137: قيد يومية | H137: 2013-02-11 | J137: 11 | K137: 2 | L137: 2013 | M137: February | N137: بنوك حسابات جارية
B138: 340.6 | C138: وثائق صندوق ثمـــار | D138: =IF(C138="","",INDEX('Chart of Accounts'!$A$2:$A$96,MATCH(C138,'Chart of Accounts'!$B$2:$B$96,0))) -> 24 | E138: إسترداد 2 وثيقة ثمار | G138: قيد يومية | H138: 2013-02-11 | J138: 11 | K138: 2 | L138: 2013 | M138: February | N138: إستثمارات فى أوراق مالية بغرض المتاجرة
B139: 1.44 | C139: أرباح إسترداد وثائق صندوق ثمـــار | D139: =IF(C139="","",INDEX('Chart of Accounts'!$A$2:$A$96,MATCH(C139,'Chart of Accounts'!$B$2:$B$96,0))) -> 88 | E139: أرباح إسترداد 2 وثيقة ثمار | G139: قيد يومية | H139: 2013-02-11 | J139: 11 | K139: 2 | L139: 2013 | M139: February | N139: أرباح إسترداد إستثمارات فى أوراق مالية بغرض المتاجرة
A140: 400 | C140: هيئة التأمينات الإجتماعية | D140: =IF(C140="","",INDEX('Chart of Accounts'!$A$2:$A$96,MATCH(C140,'Chart of Accounts'!$B$2:$B$96,0))) -> 41 | E140: سداد تأمينات إجتماعية - يناير | G140: قيد يومية | H140: 2013-02-11 | J140: 11 | K140: 2 | L140: 2013 | M140: February | N140: دائنون وحسابات دائنة أخرى
B141: 400 | C141: الأهلى سوسيتية جنرال - جنية مصرى | D141: =IF(C141="","",INDEX('Chart of Accounts'!$A$2:$A$96,MATCH(C141,'Chart of Accounts'!$B$2:$B$96,0))) -> 28 | E141: سداد تأمينات إجتماعية - يناير | G141: قيد يومية | H141: 2013-02-11 | I141: 13624986 | J141: 11 | K141: 2 | L141: 2013 | M141: February | N141: بنوك حسابات جارية
A142: 6871.56 | C142: الأهلى سوسيتية جنرال - جنية مصرى | D142: =IF(C142="","",INDEX('Chart of Accounts'!$A$2:$A$96,MATCH(C142,'Chart of Accounts'!$B$2:$B$96,0))) -> 28 | E142: إسترداد 40 وثيقة ثمار | G142: قيد يومية | H142: 2013-02-27 | J142: 27 | K142: 2 | L142: 2013 | M142: February | N142: بنوك حسابات جارية
B143: 6811.98 | C143: وثائق صندوق ثمـــار | D143: =IF(C143="","",INDEX('Chart of Accounts'!$A$2:$A$96,MATCH(C143,'Chart of Accounts'!$B$2:$B$96,0))) -> 24 | E143: إسترداد 40 وثيقة ثمار | G143: قيد يومية | H143: 2013-02-27 | J143: 27 | K143: 2 | L143: 2013 | M143: February | N143: إستثمارات فى أوراق مالية بغرض المتاجرة
B144: 59.58 | C144: أرباح إسترداد وثائق صندوق ثمـــار | D144: =IF(C144="","",INDEX('Chart of Accounts'!$A$2:$A$96,MATCH(C144,'Chart of Accounts'!$B$2:$B$96,0))) -> 88 | E144: أرباح إسترداد 40 وثيقة ثمار | G144: قيد يومية | H144: 2013-02-27 | J144: 27 | K144: 2 | L144: 2013 | M144: February | N144: أرباح إسترداد إستثمارات فى أوراق مالية بغرض المتاجرة
A145: 3600 | C145: النقدية بالصندوق | D145: =IF(C145="","",INDEX('Chart of Accounts'!$A$2:$A$96,MATCH(C145,'Chart of Accounts'!$B$2:$B$96,0))) -> 26 | E145: تمويل خزينة الشركة | G145: قيد يومية | H145: 2013-02-27 | J145: 27 | K145: 2 | L145: 2013 | M145: February | N145: النقدية بالصندوق
B146: 3600 | C146: الأهلى سوسيتية جنرال - جنية مصرى | D146: =IF(C146="","",INDEX('Chart of Accounts'!$A$2:$A$96,MATCH(C146,'Chart of Accounts'!$B$2:$B$96,0))) -> 28 | E146: تمويل خزينة الشركة | G146: قيد يومية | H146: 2013-02-27 | J146: 27 | K146: 2 | L146: 2013 | M146: February | N146: بنوك حسابات جارية
A147: 3000 | C147: النقدية بالصندوق | D147: =IF(C147="","",INDEX('Chart of Accounts'!$A$2:$A$96,MATCH(C147,'Chart of Accounts'!$B$2:$B$96,0))) -> 26 | E147: تمويل خزينة الشركة | G147: قيد يومية | H147: 2013-02-27 | J147: 27 | K147: 2 | L147: 2013 | M147: February | N147: النقدية بالصندوق
B148: 3000 | C148: الأهلى سوسيتية جنرال - جنية مصرى | D148: =IF(C148="","",INDEX('Chart of Accounts'!$A$2:$A$96,MATCH(C148,'Chart of Accounts'!$B$2:$B$96,0))) -> 28 | E148: تمويل خزينة الشركة | G148: قيد يومية | H148: 2013-02-27 | J148: 27 | K148: 2 | L148: 2013 | M148: February | N148: بنوك حسابات جارية
A149: 3864.5 | C149: أجور ومرتبات | D149: =IF(C149="","",INDEX('Chart of Accounts'!$A$2:$A$96,MATCH(C149,'Chart of Accounts'!$B$2:$B$96,0))) -> 82 | E149: أجور ومرتبات - فبراير | G149: قيد يومية | H149: 2013-02-28 | J149: 28 | K149: 2 | L149: 2013 | M149: February | N149: أجور ومرتبات
B150: 245 | C150: هيئة التأمينات الإجتماعية | D150: =IF(C150="","",INDEX('Chart of Accounts'!$A$2:$A$96,MATCH(C150,'Chart of Accounts'!$B$2:$B$96,0))) -> 41 | E150: تأمينات إجتماعية - فبراير | G150: قيد يومية | H150: 2013-02-28 | J150: 28 | K150: 2 | L150: 2013 | M150: February | N150: دائنون وحسابات دائنة أخرى
B151: 3619.5 | C151: النقدية بالصندوق | D151: =IF(C151="","",INDEX('Chart of Accounts'!$A$2:$A$96,MATCH(C151,'Chart of Accounts'!$B$2:$B$96,0))) -> 26 | E151: سداد أجور ومرتبات - فبراير | G151: قيد يومية | H151: 2013-02-28 | J151: 28 | K151: 2 | L151: 2013 | M151: February | N151: النقدية بالصندوق
A152: 3000 | C152: إكراميات | D152: =IF(C152="","",INDEX('Chart of Accounts'!$A$2:$A$96,MATCH(C152,'Chart of Accounts'!$B$2:$B$96,0))) -> 80 | E152: إكراميات بمعرفة المهندس / محمد عثمان | G152: قيد يومية | H152: 2013-02-28 | J152: =IF(H152="","",DAY(H152)) -> 28 | K152: 2 | L152: =IF(H152="","",YEAR(H152)) -> 2013 | M152: February | N152: =IF(C152="","",VLOOKUP(D152,data,4,0)) -> مصروفات إدارية وعمومية
B153: 3000 | C153: النقدية بالصندوق | D153: =IF(C153="","",INDEX('Chart of Accounts'!$A$2:$A$96,MATCH(C153,'Chart of Accounts'!$B$2:$B$96,0))) -> 26 | E153: سداد إكراميات بمعرفة المهندس / محمد عثمان | G153: قيد يومية | H153: 2013-02-28 | J153: =IF(H153="","",DAY(H153)) -> 28 | K153: 2 | L153: =IF(H153="","",YEAR(H153)) -> 2013 | M153: February | N153: النقدية بالصندوق
A154: 171.84 | C154: وثائق صندوق ثمـــار | D154: =IF(C154="","",INDEX('Chart of Accounts'!$A$2:$A$96,MATCH(C154,'Chart of Accounts'!$B$2:$B$96,0))) -> 24 | E154: شراء 1 وثيقة ثمار | G154: قيد يومية | H154: 2013-02-28 | J154: =IF(H154="","",DAY(H154)) -> 28 | K154: 2 | L154: =IF(H154="","",YEAR(H154)) -> 2013 | M154: February | N154: إستثمارات فى أوراق مالية بغرض المتاجرة
B155: 171.84 | C155: الأهلى سوسيتية جنرال - جنية مصرى | D155: =IF(C155="","",INDEX('Chart of Accounts'!$A$2:$A$96,MATCH(C155,'Chart of Accounts'!$B$2:$B$96,0))) -> 28 | E155: شراء 1 وثيقة ثمار | G155: قيد يومية | H155: 2013-02-28 | J155: =IF(H155="","",DAY(H155)) -> 28 | K155: 2 | L155: =IF(H155="","",YEAR(H155)) -> 2013 | M155: February | N155: بنوك حسابات جارية
A156: 112956.66 | C156: مصروفات إيجار تمويلى | D156: =IF(C156="","",INDEX('Chart of Accounts'!$A$2:$A$96,MATCH(C156,'Chart of Accounts'!$B$2:$B$96,0))) -> 70 | E156: إثبات قيمة إستئجار محل سيلانترو فرع نادى الصيد - فبراير | G156: قيد يومية | H156: 2013-02-28 | J156: 28 | K156: 2 | L156: 2013 | M156: February | N156: مصروفات إيجار تمويلى
A157: 18309.86 | C157: مصروفات إيجار تمويلى | D157: =IF(C157="","",INDEX('Chart of Accounts'!$A$2:$A$96,MATCH(C157,'Chart of Accounts'!$B$2:$B$96,0))) -> 70 | E157: إستهلاك مقدم تعاقد إستئجار محل سيلانترو فرع نادى الصيد - فبراير | G157: قيد يومية | H157: 2013-02-28 | J157: 28 | K157: 2 | L157: 2013 | M157: February | N157: مصروفات إيجار تمويلى
B158: 112956.66 | C158: أقساط تأجير تمويلى مؤجلة الدفع - قصيرة الأجل | D158: =IF(C158="","",INDEX('Chart of Accounts'!$A$2:$A$96,MATCH(C158,'Chart of Accounts'!$B$2:$B$96,0))) -> 18 | E158: إثبات قيمة إستئجار محل سيلانترو فرع نادى الصيد - فبراير | G158: قيد يومية | H158: 2013-02-28 | J158: 28 | K158: 2 | L158: 2013 | M158: February | N158: مدينون وحسابات مدينة أخرى
B159: 18309.86 | C159: أقساط تأجير تمويلى مؤجلة الدفع - قصيرة الأجل | D159: =IF(C159="","",INDEX('Chart of Accounts'!$A$2:$A$96,MATCH(C159,'Chart of Accounts'!$B$2:$B$96,0))) -> 18 | E159: إستهلاك مقدم تعاقد إستئجار محل سيلانترو فرع نادى الصيد - فبراير | G159: قيد يومية | H159: 2013-02-28 | J159: 28 | K159: 2 | L159: 2013 | M159: February | N159: مدينون وحسابات مدينة أخرى
A160: 1221.08 | C160: أرباح مؤجلة من البيع وإعادة التأجير | D160: =IF(C160="","",INDEX('Chart of Accounts'!$A$2:$A$96,MATCH(C160,'Chart of Accounts'!$B$2:$B$96,0))) -> 48 | E160: إستهلاك أرباح بيع إستثمارات عقارية - مؤجلة (فبراير) | G160: قيد يومية | H160: 2013-02-28 | J160: 28 | K160: 2 | L160: 2013 | M160: February | N160: دائنون وحسابات دائنة أخرى
B161: 1221.08 | C161: أرباح مؤجلة من البيع وإعادة التأجير - قائمة الدخل | D161: =IF(C161="","",INDEX('Chart of Accounts'!$A$2:$A$96,MATCH(C161,'Chart of Accounts'!$B$2:$B$96,0))) -> 92 | E161: إستهلاك أرباح بيع إستثمارات عقارية - مؤجلة (فبراير) | G161: قيد يومية | H161: 2013-02-28 | J161: 28 | K161: 2 | L161: 2013 | M161: February | N161: أرباح مؤجلة من البيع وإعادة التأجير
A162: 256.63 | C162: مصاريف علاج | D162: =IF(C162="","",INDEX('Chart of Accounts'!$A$2:$A$96,MATCH(C162,'Chart of Accounts'!$B$2:$B$96,0))) -> 75 | E162: تسوية م . وثيقة التأمين الطبى (المدفوع مقدماً) - فبراير | G162: قيد يومية | H162: 2013-02-28 | J162: =IF(H162="","",DAY(H162)) -> 28 | K162: =IF(H162="","",MONTH(H162)) -> 2 | L162: =IF(H162="","",YEAR(H162)) -> 2013 | M162: =IF(H162<>"",TEXT(H162,"B1MMMM"),"") -> February | N162: =IF(C162="","",VLOOKUP(D162,data,4,0)) -> مصروفات إدارية وعمومية
B163: 256.63 | C163: مصروفات مدفوعة مقدماً | D163: =IF(C163="","",INDEX('Chart of Accounts'!$A$2:$A$96,MATCH(C163,'Chart of Accounts'!$B$2:$B$96,0))) -> 13 | E163: تسوية م . وثيقة التأمين الطبى - فبراير | G163: قيد يومية | H163: 2013-02-28 | J163: =IF(H163="","",DAY(H163)) -> 28 | K163: =IF(H163="","",MONTH(H163)) -> 2 | L163: =IF(H163="","",YEAR(H163)) -> 2013 | M163: =IF(H163<>"",TEXT(H163,"B1MMMM"),"") -> February | N163: =IF(C163="","",VLOOKUP(D163,data,4,0)) -> مدينون وحسابات مدينة أخرى
A164: 1073.9 | C164: إهلاك أجهزة ومعدات | D164: =IF(C164="","",INDEX('Chart of Accounts'!$A$2:$A$96,MATCH(C164,'Chart of Accounts'!$B$2:$B$96,0))) -> 84 | E164: إهلاك وحدة مناولة الهواء - فبراير | G164: قيد يومية | H164: 2013-02-28 | J164: 28 | K164: 2 | L164: 2013 | M164: February | N164: إهلاك أصول ثابتة
A165: 23570.64 | C165: إهلاك مبانى | D165: =IF(C165="","",INDEX('Chart of Accounts'!$A$2:$A$96,MATCH(C165,'Chart of Accounts'!$B$2:$B$96,0))) -> 86 | E165: إهلاك مبنى القرية الذكية - فبراير | G165: قيد يومية | H165: 2013-02-28 | J165: 28 | K165: 2 | L165: 2013 | M165: February | N165: إهلاك إستثمارات عقارية
A166: 9205.48 | C166: إهلاك مبانى | D166: =IF(C166="","",INDEX('Chart of Accounts'!$A$2:$A$96,MATCH(C166,'Chart of Accounts'!$B$2:$B$96,0))) -> 86 | E166: إهلاك مبنى الزمالك - فبراير | G166: قيد يومية | H166: 2013-02-28 | J166: 28 | K166: 2 | L166: 2013 | M166: February | N166: إهلاك إستثمارات عقارية
B167: 1073.9 | C167: مجمع إهلاك أجهزة ومعدات | D167: =IF(C167="","",INDEX('Chart of Accounts'!$A$2:$A$96,MATCH(C167,'Chart of Accounts'!$B$2:$B$96,0))) -> 4 | E167: إهلاك وحدة مناولة الهواء - فبراير | G167: قيد يومية | H167: 2013-02-28 | J167: 28 | K167: 2 | L167: 2013 | M167: February | N167: مجمع إهلاك أصول ثابتة
B168: 23570.64 | C168: مجمع إهلاك مبانى | D168: =IF(C168="","",INDEX('Chart of Accounts'!$A$2:$A$96,MATCH(C168,'Chart of Accounts'!$B$2:$B$96,0))) -> 8 | E168: إهلاك مبنى القرية الذكية - فبراير | G168: قيد يومية | H168: 2013-02-28 | J168: 28 | K168: =IF(H168="","",MONTH(H168)) -> 2 | L168: 2013 | M168: February | N168: مجمع إهلاك إستثمارات عقارية
B169: 9205.48 | C169: مجمع إهلاك مبانى | D169: =IF(C169="","",INDEX('Chart of Accounts'!$A$2:$A$96,MATCH(C169,'Chart of Accounts'!$B$2:$B$96,0))) -> 8 | E169: إهلاك مبنى الزمالك - فبراير | G169: قيد يومية | H169: 2013-02-28 | J169: 28 | K169: =IF(H169="","",MONTH(H169)) -> 2 | L169: 2013 | M169: February | N169: مجمع إهلاك إستثمارات عقارية
A170: 15 | C170: مصاريف بنكية | D170: =IF(C170="","",INDEX('Chart of Accounts'!$A$2:$A$96,MATCH(C170,'Chart of Accounts'!$B$2:$B$96,0))) -> 78 | E170: م. إنترنت بنكى - الأهلى سوسيتية جنرال | G170: قيد يومية | H170: 2013-02-28 | J170: 31 | K170: 1 | L170: 2013 | M170: January | N170: مصروفات إدارية وعمومية
A171: 5 | C171: مصاريف بنكية | D171: =IF(C171="","",INDEX('Chart of Accounts'!$A$2:$A$96,MATCH(C171,'Chart of Accounts'!$B$2:$B$96,0))) -> 78 | E171: م. كشف حساب - الأهلى سوسيتية جنرال | G171: قيد يومية | H171: 2013-02-28 | J171: 31 | K171: 1 | L171: 2013 | M171: January | N171: مصروفات إدارية وعمومية
A172: 46 | C172: مصاريف بنكية | D172: =IF(C172="","",INDEX('Chart of Accounts'!$A$2:$A$96,MATCH(C172,'Chart of Accounts'!$B$2:$B$96,0))) -> 78 | E172: م. تحصيل شيك تيكو - الشركة المصرفية العربية الدولية | G172: قيد يومية | H172: 2013-02-28 | J172: 31 | K172: 1 | L172: 2013 | M172: January | N172: مصروفات إدارية وعمومية
A173: 75 | C173: مصاريف بنكية | D173: =IF(C173="","",INDEX('Chart of Accounts'!$A$2:$A$96,MATCH(C173,'Chart of Accounts'!$B$2:$B$96,0))) -> 78 | E173: م. بنكية - الشركة المصرفية العربية الدولية | G173: قيد يومية | H173: 2013-02-28 | J173: 31 | K173: 1 | L173: 2013 | M173: January | N173: مصروفات إدارية وعمومية
A174: 707.85 | C174: مصاريف بنكية | D174: =IF(C174="","",INDEX('Chart of Accounts'!$A$2:$A$96,MATCH(C174,'Chart of Accounts'!$B$2:$B$96,0))) -> 78 | E174: م. بنكية - الشركة المصرفية العربية الدولية | G174: قيد يومية | H174: 2013-02-28 | J174: =IF(H174="","",DAY(H174)) -> 28 | K174: =IF(H174="","",MONTH(H174)) -> 2 | L174: =IF(H174="","",YEAR(H174)) -> 2013 | M174: =IF(H174<>"",TEXT(H174,"B1MMMM"),"") -> February | N174: =IF(C174="","",VLOOKUP(D174,data,4,0)) -> مصروفات إدارية وعمومية
A175: 707.85 | C175: الشركة المصرفية العربية الدولية - جنية مصرى | D175: =IF(C175="","",INDEX('Chart of Accounts'!$A$2:$A$96,MATCH(C175,'Chart of Accounts'!$B$2:$B$96,0))) -> 29 | E175: رد م. بنكية | G175: قيد يومية | H175: 2013-02-28 | J175: =IF(H175="","",DAY(H175)) -> 28 | K175: =IF(H175="","",MONTH(H175)) -> 2 | L175: =IF(H175="","",YEAR(H175)) -> 2013 | M175: =IF(H175<>"",TEXT(H175,"B1MMMM"),"") -> February | N175: =IF(C175="","",VLOOKUP(D175,data,4,0)) -> بنوك حسابات جارية
B176: 15 | C176: الأهلى سوسيتية جنرال - جنية مصرى | D176: =IF(C176="","",INDEX('Chart of Accounts'!$A$2:$A$96,MATCH(C176,'Chart of Accounts'!$B$2:$B$96,0))) -> 28 | E176: م. إنترنت بنكى | G176: قيد يومية | H176: 2013-02-28 | J176: 31 | K176: 1 | L176: 2013 | M176: January | N176: بنوك حسابات جارية
B177: 5 | C177: الأهلى سوسيتية جنرال - جنية مصرى | D177: =IF(C177="","",INDEX('Chart of Accounts'!$A$2:$A$96,MATCH(C177,'Chart of Accounts'!$B$2:$B$96,0))) -> 28 | E177: م. كشف حساب | G177: قيد يومية | H177: 2013-02-28 | J177: 31 | K177: 1 | L177: 2013 | M177: January | N177: بنوك حسابات جارية
B178: 46 | C178: الشركة المصرفية العربية الدولية - جنية مصرى | D178: =IF(C178="","",INDEX('Chart of Accounts'!$A$2:$A$96,MATCH(C178,'Chart of Accounts'!$B$2:$B$96,0))) -> 29 | E178: م. تحصيل شيك تيكو | G178: قيد يومية | H178: 2013-02-28 | J178: 31 | K178: 1 | L178: 2013 | M178: January | N178: بنوك حسابات جارية
B179: 75 | C179: الشركة المصرفية العربية الدولية - جنية مصرى | D179: =IF(C179="","",INDEX('Chart of Accounts'!$A$2:$A$96,MATCH(C179,'Chart of Accounts'!$B$2:$B$96,0))) -> 29 | E179: م. بنكية | G179: قيد يومية | H179: 2013-02-28 | J179: 31 | K179: 1 | L179: 2013 | M179: January | N179: بنوك حسابات جارية
B180: 707.85 | C180: الشركة المصرفية العربية الدولية - جنية مصرى | D180: =IF(C180="","",INDEX('Chart of Accounts'!$A$2:$A$96,MATCH(C180,'Chart of Accounts'!$B$2:$B$96,0))) -> 29 | E180: م. بنكية | G180: قيد يومية | H180: 2013-02-28 | J180: =IF(H180="","",DAY(H180)) -> 28 | K180: =IF(H180="","",MONTH(H180)) -> 2 | L180: =IF(H180="","",YEAR(H180)) -> 2013 | M180: =IF(H180<>"",TEXT(H180,"B1MMMM"),"") -> February | N180: =IF(C180="","",VLOOKUP(D180,data,4,0)) -> بنوك حسابات جارية
B181: 707.85 | C181: مصاريف بنكية | D181: =IF(C181="","",INDEX('Chart of Accounts'!$A$2:$A$96,MATCH(C181,'Chart of Accounts'!$B$2:$B$96,0))) -> 78 | E181: رد م. بنكية - الشركة المصرفية العربية الدولية | G181: قيد يومية | H181: 2013-02-28 | J181: =IF(H181="","",DAY(H181)) -> 28 | K181: =IF(H181="","",MONTH(H181)) -> 2 | L181: =IF(H181="","",YEAR(H181)) -> 2013 | M181: =IF(H181<>"",TEXT(H181,"B1MMMM"),"") -> February | N181: =IF(C181="","",VLOOKUP(D181,data,4,0)) -> مصروفات إدارية وعمومية
A182: 35000 | C182: إيرادات مستحقة | D182: =IF(C182="","",INDEX('Chart of Accounts'!$A$2:$A$96,MATCH(C182,'Chart of Accounts'!$B$2:$B$96,0))) -> 12 | E182: إستحقاق إيجار تيكو - مارس | G182: قيد يومية | H182: 2013-03-01 | J182: =IF(H182="","",DAY(H182)) -> 1 | K182: =IF(H182="","",MONTH(H182)) -> 3 | L182: =IF(H182="","",YEAR(H182)) -> 2013 | M182: March | N182: مدينون وحسابات مدينة أخرى
A183: 25300 | C183: إيرادات مستحقة | D183: =IF(C183="","",INDEX('Chart of Accounts'!$A$2:$A$96,MATCH(C183,'Chart of Accounts'!$B$2:$B$96,0))) -> 12 | E183: إستحقاق إيجار يورو ديلى - مارس | G183: قيد يومية | H183: 2013-03-01 | J183: 1 | K183: 3 | L183: 2013 | M183: March | N183: مدينون وحسابات مدينة أخرى
A184: 70525 | C184: إيرادات مستحقة | D184: =IF(C184="","",INDEX('Chart of Accounts'!$A$2:$A$96,MATCH(C184,'Chart of Accounts'!$B$2:$B$96,0))) -> 12 | E184: إستحقاق إيجار سيلانترو - مارس | G184: قيد يومية | H184: 2013-03-01 | J184: 1 | K184: 3 | L184: 2013 | M184: March | N184: مدينون وحسابات مدينة أخرى
B185: 35000 | C185: إيرادات إيجار إستثمار عقارى - تيكو | D185: =IF(C185="","",INDEX('Chart of Accounts'!$A$2:$A$96,MATCH(C185,'Chart of Accounts'!$B$2:$B$96,0))) -> 67 | E185: إيجار تيكو - مارس | G185: قيد يومية | H185: 2013-03-01 | J185: 1 | K185: =IF(H185="","",MONTH(H185)) -> 3 | L185: 2013 | M185: March | N185: =IF(C185="","",VLOOKUP(D185,data,4,0)) -> الإيرادات
B186: 25300 | C186: إيرادات إيجار إستثمار عقارى - يورو ديلى | D186: =IF(C186="","",INDEX('Chart of Accounts'!$A$2:$A$96,MATCH(C186,'Chart of Accounts'!$B$2:$B$96,0))) -> 68 | E186: إيجار يورو ديلى - مارس | G186: قيد يومية | H186: 2013-03-01 | J186: 1 | K186: =IF(H186="","",MONTH(H186)) -> 3 | L186: 2013 | M186: March | N186: الإيرادات
B187: 70525 | C187: إيرادات إيجار إستثمار عقارى - سيلانترو | D187: =IF(C187="","",INDEX('Chart of Accounts'!$A$2:$A$96,MATCH(C187,'Chart of Accounts'!$B$2:$B$96,0))) -> 69 | E187: إيجار سيلانترو - مارس | G187: قيد يومية | H187: 2013-03-01 | J187: 1 | K187: =IF(H187="","",MONTH(H187)) -> 3 | L187: 2013 | M187: March | N187: الإيرادات
A188: 25300 | C188: الشركة المصرفية العربية الدولية - جنية مصرى | D188: =IF(C188="","",INDEX('Chart of Accounts'!$A$2:$A$96,MATCH(C188,'Chart of Accounts'!$B$2:$B$96,0))) -> 29 | E188: تحويل بنكى يورو ديلى - إيجار فبراير | G188: قيد يومية | H188: 2013-03-03 | J188: =IF(H188="","",DAY(H188)) -> 3 | K188: =IF(H188="","",MONTH(H188)) -> 3 | L188: =IF(H188="","",YEAR(H188)) -> 2013 | M188: =IF(H188<>"",TEXT(H188,"B1MMMM"),"") -> March | N188: =IF(C188="","",VLOOKUP(D188,data,4,0)) -> بنوك حسابات جارية
B189: 25300 | C189: إيرادات مستحقة | D189: =IF(C189="","",INDEX('Chart of Accounts'!$A$2:$A$96,MATCH(C189,'Chart of Accounts'!$B$2:$B$96,0))) -> 12 | E189: تحويل بنكى يورو ديلى - إيجار فبراير | G189: قيد يومية | H189: 2013-03-03 | J189: =IF(H189="","",DAY(H189)) -> 3 | K189: =IF(H189="","",MONTH(H189)) -> 3 | L189: =IF(H189="","",YEAR(H189)) -> 2013 | M189: =IF(H189<>"",TEXT(H189,"B1MMMM"),"") -> March | N189: =IF(C189="","",VLOOKUP(D189,data,4,0)) -> مدينون وحسابات مدينة أخرى
A190: 211575 | C190: الشركة المصرفية العربية الدولية - جنية مصرى | D190: =IF(C190="","",INDEX('Chart of Accounts'!$A$2:$A$96,MATCH(C190,'Chart of Accounts'!$B$2:$B$96,0))) -> 29 | E190: إيداع شيك شركة دليشوس إنك (سيلانترو) رقم 51137432 (القيمة الإيجارية لأشهر مارس ، أبريل ، مايو) | G190: قيد يومية | H190: 2013-03-05 | J190: =IF(H190="","",DAY(H190)) -> 5 | K190: =IF(H190="","",MONTH(H190)) -> 3 | L190: =IF(H190="","",YEAR(H190)) -> 2013 | M190: =IF(H190<>"",TEXT(H190,"B1MMMM"),"") -> March | N190: =IF(C190="","",VLOOKUP(D190,data,4,0)) -> بنوك حسابات جارية
B191: 70525 | C191: إيرادات مستحقة | D191: =IF(C191="","",INDEX('Chart of Accounts'!$A$2:$A$96,MATCH(C191,'Chart of Accounts'!$B$2:$B$96,0))) -> 12 | E191: تسوية إيجار سيلانترو - مارس | G191: قيد يومية | H191: 2013-03-05 | J191: =IF(H191="","",DAY(H191)) -> 5 | K191: =IF(H191="","",MONTH(H191)) -> 3 | L191: =IF(H191="","",YEAR(H191)) -> 2013 | M191: =IF(H191<>"",TEXT(H191,"B1MMMM"),"") -> March | N191: =IF(C191="","",VLOOKUP(D191,data,4,0)) -> مدينون وحسابات مدينة أخرى
B192: 141050 | C192: إيرادات مقدمة | D192: =IF(C192="","",INDEX('Chart of Accounts'!$A$2:$A$96,MATCH(C192,'Chart of Accounts'!$B$2:$B$96,0))) -> 42 | E192: شيك شركة دليشوس انك القيمة الإيجارية لأشهر أبريل ، مايو | G192: قيد يومية | H192: 2013-03-05 | J192: =IF(H192="","",DAY(H192)) -> 5 | K192: =IF(H192="","",MONTH(H192)) -> 3 | L192: =IF(H192="","",YEAR(H192)) -> 2013 | M192: =IF(H192<>"",TEXT(H192,"B1MMMM"),"") -> March | N192: =IF(C192="","",VLOOKUP(D192,data,4,0)) -> دائنون وحسابات دائنة أخرى
A193: 35000 | C193: الشركة المصرفية العربية الدولية - جنية مصرى | D193: =IF(C193="","",INDEX('Chart of Accounts'!$A$2:$A$96,MATCH(C193,'Chart of Accounts'!$B$2:$B$96,0))) -> 29 | E193: إيداع شيك تيكو رقم 9399419 - إيجار مارس | G193: قيد يومية | H193: 2013-03-11 | J193: 11 | K193: 3 | L193: 2013 | M193: March | N193: بنوك حسابات جارية
B194: 35000 | C194: إيرادات مستحقة | D194: =IF(C194="","",INDEX('Chart of Accounts'!$A$2:$A$96,MATCH(C194,'Chart of Accounts'!$B$2:$B$96,0))) -> 12 | E194: إيداع شيك تيكو رقم 9399419 - إيجار مارس | G194: قيد يومية | H194: 2013-03-11 | J194: 11 | K194: 3 | L194: 2013 | M194: March | N194: مدينون وحسابات مدينة أخرى
A195: 172.41 | C195: الأهلى سوسيتية جنرال - جنية مصرى | D195: =IF(C195="","",INDEX('Chart of Accounts'!$A$2:$A$96,MATCH(C195,'Chart of Accounts'!$B$2:$B$96,0))) -> 28 | E195: إسترداد 1 وثيقة ثمار | G195: قيد يومية | H195: 2013-03-12 | J195: 12 | K195: 3 | L195: 2013 | M195: March | N195: بنوك حسابات جارية
B196: 170.3 | C196: وثائق صندوق ثمـــار | D196: =IF(C196="","",INDEX('Chart of Accounts'!$A$2:$A$96,MATCH(C196,'Chart of Accounts'!$B$2:$B$96,0))) -> 24 | E196: إسترداد 1 وثيقة ثمار | G196: قيد يومية | H196: 2013-03-12 | J196: 12 | K196: 3 | L196: 2013 | M196: March | N196: إستثمارات فى أوراق مالية بغرض المتاجرة
B197: 2.11 | C197: أرباح إسترداد وثائق صندوق ثمـــار | D197: =IF(C197="","",INDEX('Chart of Accounts'!$A$2:$A$96,MATCH(C197,'Chart of Accounts'!$B$2:$B$96,0))) -> 88 | E197: أرباح إسترداد 1 وثيقة ثمار | G197: قيد يومية | H197: 2013-03-12 | J197: =IF(H197="","",DAY(H197)) -> 12 | K197: 3 | L197: =IF(H197="","",YEAR(H197)) -> 2013 | M197: March | N197: أرباح إسترداد إستثمارات فى أوراق مالية بغرض المتاجرة
A198: 245 | C198: هيئة التأمينات الإجتماعية | D198: =IF(C198="","",INDEX('Chart of Accounts'!$A$2:$A$96,MATCH(C198,'Chart of Accounts'!$B$2:$B$96,0))) -> 41 | E198: سداد تأمينات إجتماعية - فبراير | G198: قيد يومية | H198: 2013-03-12 | J198: =IF(H198="","",DAY(H198)) -> 12 | K198: 3 | L198: =IF(H198="","",YEAR(H198)) -> 2013 | M198: March | N198: =IF(C198="","",VLOOKUP(D198,data,4,0)) -> دائنون وحسابات دائنة أخرى
B199: 245 | C199: الأهلى سوسيتية جنرال - جنية مصرى | D199: =IF(C199="","",INDEX('Chart of Accounts'!$A$2:$A$96,MATCH(C199,'Chart of Accounts'!$B$2:$B$96,0))) -> 28 | E199: سداد تأمينات إجتماعية - فبراير | G199: قيد يومية | H199: 2013-03-12 | J199: =IF(H199="","",DAY(H199)) -> 12 | K199: 3 | L199: =IF(H199="","",YEAR(H199)) -> 2013 | M199: March | N199: بنوك حسابات جارية
A200: 6578.52 | C200: الأهلى سوسيتية جنرال - جنية مصرى | D200: =IF(C200="","",INDEX('Chart of Accounts'!$A$2:$A$96,MATCH(C200,'Chart of Accounts'!$B$2:$B$96,0))) -> 28 | E200: إسترداد 38 وثيقة ثمار | G200: قيد يومية | H200: 2013-03-27 | J200: 27 | K200: 3 | L200: 2013 | M200: March | N200: بنوك حسابات جارية
... 1800 more rows

Sheet Chart of Accounts
A1: رقم الحساب | B1: إسم الحساب | C1: طبيعة الحساب | D1: مجموعة الحساب
A2: =ROW()-1 -> 1 | B2: أصول ثابتة | C2: أصول طويلة الأجل | D2: أصول طويلة الأجل
A3: =ROW()-1 -> 2 | B3: أجهزة ومعدات | C3: أصول طويلة الأجل | D3: أصول ثابتة
A4: 3 | B4: مجمع إهلاك أصول ثابتة | C4: إلتزامات طويلة الأجل | D4: إلتزامات طويلة الأجل
A5: 4 | B5: مجمع إهلاك أجهزة ومعدات | C5: إلتزامات طويلة الأجل | D5: مجمع إهلاك أصول ثابتة
A6: 5 | B6: إستثمارات عقارية | C6: أصول طويلة الأجل | D6: أصول طويلة الأجل
A7: 6 | B7: مبانى | C7: أصول طويلة الأجل | D7: إستثمارات عقارية
A8: 7 | B8: مجمع إهلاك إستثمارات عقارية | C8: إلتزامات طويلة الأجل | D8: إلتزامات طويلة الأجل
A9: 8 | B9: مجمع إهلاك مبانى | C9: إلتزامات طويلة الأجل | D9: مجمع إهلاك إستثمارات عقارية
A10: 9 | B10: حسابات مدينة - طويلة الأجل | C10: أصول متداولة | D10: أصول طويلة الأجل
A11: 10 | B11: أقساط تأجير تمويلى مؤجلة الدفع - طويلة الأجل | C11: أصول متداولة | D11: حسابات مدينة - طويلة الأجل
A12: 11 | B12: مدينون وحسابات مدينة أخرى | C12: أصول متداولة | D12: أصول متداولة
A13: 12 | B13: إيرادات مستحقة | C13: أصول متداولة | D13: مدينون وحسابات مدينة أخرى
A14: 13 | B14: مصروفات مدفوعة مقدماً | C14: أصول متداولة | D14: مدينون وحسابات مدينة أخرى
A15: 14 | B15: عهد تحت التسوية - هدى عثمان | C15: أصول متداولة | D15: مدينون وحسابات مدينة أخرى
A16: 15 | B16: عهد تحت التسوية - أيمن كمال | C16: أصول متداولة | D16: مدينون وحسابات مدينة أخرى
A17: 16 | B17: مدينو شراء إستثمارات عقارية | C17: أصول متداولة | D17: مدينون وحسابات مدينة أخرى
A18: 17 | B18: مدينو بيع إستثمارات عقارية - النيل للتأجير التمويلى | C18: أصول متداولة | D18: مدينون وحسابات مدينة أخرى
A19: 18 | B19: أقساط تأجير تمويلى مؤجلة الدفع - قصيرة الأجل | C19: أصول متداولة | D19: مدينون وحسابات مدينة أخرى
A20: 19 | B20: أوراق قبض | C20: أصول متداولة | D20: مدينون وحسابات مدينة أخرى
A21: 20 | B21: مدينون متنوعون - شركة كونكورد العقارية | C21: أصول متداولة | D21: مدينون وحسابات مدينة أخرى
A22: 21 | B22: حسابات مدينة لدى الشركة القابضة | C22: أصول متداولة | D22: أصول متداولة
A23: 22 | B23: شركة سوفيكو للإستثمارات المالية | C23: أصول متداولة | D23: حسابات مدينة لدى الشركة القابضة
A24: 23 | B24: إستثمارات فى أوراق مالية بغرض المتاجرة | C24: أصول متداولة | D24: أصول متداولة
A25: 24 | B25: وثائق صندوق ثمـــار | C25: أصول متداولة | D25: إستثمارات فى أوراق مالية بغرض المتاجرة
A26: 25 | B26: نقدية بالصندوق ولدى البنوك | C26: أصول متداولة | D26: أصول متداولة
A27: 26 | B27: النقدية بالصندوق | C27: نقدية بالصندوق ولدى البنوك | D27: النقدية بالصندوق
A28: =ROW()-1 -> 27 | B28: بنوك حسابات جارية | C28: أصول متداولة | D28: أصول متداولة
A29: 28 | B29: الأهلى سوسيتية جنرال - جنية مصرى | C29: نقدية بالصندوق ولدى البنوك | D29: بنوك حسابات جارية | E29: حساب رقم / 11-20312371024
A30: 29 | B30: الشركة المصرفية العربية الدولية - جنية مصرى | C30: نقدية بالصندوق ولدى البنوك | D30: بنوك حسابات جارية | E30: MTL Medium Term Loan
A31: 30 | B31: الشركة المصرفية العربية الدولية - جنية مصرى (ذو عائد) | C31: نقدية بالصندوق ولدى البنوك | D31: بنوك حسابات جارية
A32: 31 | B32: الأهلى المصرى - جنية مصرى | C32: نقدية بالصندوق ولدى البنوك | D32: بنوك حسابات جارية
A33: 32 | B33: بنك مصر - جنية مصرى | C33: نقدية بالصندوق ولدى البنوك | D33: بنوك حسابات جارية
A34: 33 | B34: العقارى المصرى العربى - جنية مصرى | C34: نقدية بالصندوق ولدى البنوك | D34: بنوك حسابات جارية
A35: 34 | B35: التنمية الصناعية والعمال المصرى - جنية مصرى | C35: نقدية بالصندوق ولدى البنوك | D35: بنوك حسابات جارية
A36: 35 | B36: بنوك ودائع لأجل | C36: أصول متداولة | D36: أصول متداولة
A37: 36 | B37: الأهلى سوسيتية جنرال - يورو (ودائع) | C37: أصول متداولة | D37: بنوك ودائع لأجل
A38: 37 | B38: بنوك حسابات دائنة | C38: إلتزامات متداولة | D38: إلتزامات متداولة
A39: 38 | B39: البنك الأهلى المصرى - جنية مصرى | C39: إلتزامات متداولة | D39: بنوك حسابات دائنة
A40: 39 | B40: دائنون وحسابات دائنة أخرى | C40: إلتزامات متداولة | D40: إلتزامات متداولة
A41: 40 | B41: مصروفات مستحقة | C41: إلتزامات متداولة | D41: دائنون وحسابات دائنة أخرى
A42: 41 | B42: هيئة التأمينات الإجتماعية | C42: إلتزامات متداولة | D42: دائنون وحسابات دائنة أخرى
A43: 42 | B43: إيرادات مقدمة | C43: إلتزامات متداولة | D43: دائنون وحسابات دائنة أخرى
A44: 43 | B44: جارى مصلحة الضرائب - ضرائب خصم | C44: إلتزامات متداولة | D44: دائنون وحسابات دائنة أخرى
A45: 44 | B45: جارى مصلحة الضرائب - ضريبة الدخل | C45: إلتزامات متداولة | D45: دائنون وحسابات دائنة أخرى
A46: 45 | B46: تأمينات للغير - يورو ديلى | C46: إلتزامات متداولة | D46: دائنون وحسابات دائنة أخرى
A47: 46 | B47: تأمينات للغير - دليشوس انك | C47: إلتزامات متداولة | D47: دائنون وحسابات دائنة أخرى
A48: 47 | B48: أوراق دفع | C48: إلتزامات متداولة | D48: دائنون وحسابات دائنة أخرى
A49: =ROW()-1 -> 48 | B49: أرباح مؤجلة من البيع وإعادة التأجير | C49: أصول متداولة | D49: دائنون وحسابات دائنة أخرى
A50: 49 | B50: دائنون متنوعون - شركة إسكان خريجى الجيزويت | C50: إلتزامات متداولة | D50: دائنون وحسابات دائنة أخرى
A51: 50 | B51: دائنون متنوعون - مكتب صالح وحجاب | C51: إلتزامات متداولة | D51: دائنون وحسابات دائنة أخرى
A52: 51 | B52: دائنون متنوعون - حازم بدران | C52: إلتزامات متداولة | D52: دائنون وحسابات دائنة أخرى
A53: 52 | B53: حسابات دائنة للشركة القابضة | C53: إلتزامات متداولة | D53: إلتزامات متداولة
A54: 53 | B54: شركة إسكان خريجى الجيزويت | C54: إلتزامات متداولة | D54: حسابات دائنة للشركة القابضة
A55: 54 | B55: شركة سوفيكو للإستثمارات المالية (ش.م.م) | C55: إلتزامات متداولة | D55: حسابات دائنة للشركة القابضة
A56: 55 | B56: حسابات جارية دائنة - مساهمين | C56: إلتزامات متداولة | D56: إلتزامات متداولة
A57: 56 | B57: الأستاذ / محمد أشرف عمر عمر | C57: إلتزامات متداولة | D57: حسابات جارية دائنة - مساهمين
A58: 57 | B58: الأستاذ / طارق أمين ملش محمد | C58: إلتزامات متداولة | D58: حسابات جارية دائنة - مساهمين
A59: 58 | B59: الأستاذ / أمين أحمد أمين سعيد | C59: إلتزامات متداولة | D59: حسابات جارية دائنة - مساهمين
A60: 59 | B60: الأستاذ / محمد عمر مكرم | C60: إلتزامات متداولة | D60: حسابات جارية دائنة - مساهمين
A61: 60 | B61: رأس المال المصدر والمدفوع | C61: حقوق مساهمين | D61: رأس المال المصدر والمدفوع
A62: 61 | B62: الإحتياطيات | C62: حقوق مساهمين | D62: الإحتياطيات
A63: 62 | B63: إحتياطى قانونى | C63: حقوق مساهمين | D63: الإحتياطيات
A64: 63 | B64: أرباح مرحلة | C64: حقوق مساهمين | D64: أرباح مرحلة
A65: 64 | B65: إلتزام ضريبى مؤجل | C65: إلتزامات طويلة الأجل | D65: إلتزام ضريبى مؤجل
A66: 65 | B66: حسابات دائنة - طويلة الأجل | C66: إلتزامات طويلة الأجل | D66: حسابات دائنة - طويلة الأجل
A67: =ROW()-1 -> 66 | B67: الإيرادات | C67: إيرادات النشاط | D67: الإيرادات
A68: 67 | B68: إيرادات إيجار إستثمار عقارى - تيكو | C68: إيرادات النشاط | D68: الإيرادات
A69: 68 | B69: إيرادات إيجار إستثمار عقارى - يورو ديلى | C69: إيرادات النشاط | D69: الإيرادات
A70: 69 | B70: إيرادات إيجار إستثمار عقارى - سيلانترو | C70: إيرادات النشاط | D70: الإيرادات
A71: =ROW()-1 -> 70 | B71: مصروفات إيجار تمويلى | C71: مصروفات النشاط | D71: مصروفات إيجار تمويلى
A72: 71 | B72: مصروفات إدارية وعمومية | C72: مصروفات النشاط | D72: مصروفات إدارية وعمومية
A73: 72 | B73: مصاريف إصلاح وصيانة | C73: مصروفات النشاط | D73: مصروفات إدارية وعمومية
A74: 73 | B74: أدوات مكتبية ومطبوعات | C74: مصروفات النشاط | D74: مصروفات إدارية وعمومية
A75: 74 | B75: سفر وإقامة وإنتقالات | C75: مصروفات النشاط | D75: مصروفات إدارية وعمومية
A76: 75 | B76: مصاريف علاج | C76: مصروفات النشاط | D76: مصروفات إدارية وعمومية
A77: 76 | B77: رسوم حكومية وتراخيص وإشتراكات | C77: مصروفات النشاط | D77: مصروفات إدارية وعمومية
A78: 77 | B78: مصاريف إستشارات | C78: مصروفات النشاط | D78: مصروفات إدارية وعمومية
A79: 78 | B79: مصاريف بنكية | C79: مصروفات النشاط | D79: مصروفات إدارية وعمومية
A80: 79 | B80: أتعاب مهنية | C80: مصروفات النشاط | D80: مصروفات إدارية وعمومية
A81: 80 | B81: إكراميات | C81: مصروفات النشاط | D81: مصروفات إدارية وعمومية
A82: 81 | B82: مصاريف متنوعة | C82: مصروفات النشاط | D82: مصروفات إدارية وعمومية
A83: 82 | B83: أجور ومرتبات | C83: مصروفات النشاط | D83: أجور ومرتبات
A84: 83 | B84: إهلاك أصول ثابتة | C84: تكاليف النشاط | D84: تكاليف النشاط
A85: 84 | B85: إهلاك أجهزة ومعدات | C85: تكاليف النشاط | D85: إهلاك أصول ثابتة
A86: 85 | B86: إهلاك إستثمارات عقارية | C86: تكاليف النشاط | D86: تكاليف النشاط
A87: 86 | B87: إهلاك مبانى | C87: تكاليف النشاط | D87: إهلاك إستثمارات عقارية
A88: 87 | B88: أرباح إسترداد إستثمارات فى أوراق مالية بغرض المتاجرة | C88: إيرادات متنوعة | D88: أرباح إسترداد إستثمارات فى أوراق مالية بغرض المتاجرة
A89: 88 | B89: أرباح إسترداد وثائق صندوق ثمـــار | C89: إيرادات متنوعة | D89: أرباح إسترداد إستثمارات فى أوراق مالية بغرض المتاجرة
A90: 89 | B90: التغير فى القيمة العادلة لإستثمارات فى أوراق مالية بغرض المتاجرة | C90: إيرادات متنوعة | D90: التغير فى القيمة العادلة لإستثمارات فى أوراق مالية بغرض المتاجرة
A91: 90 | B91: التغير فى القيمة العادلة لوثائق صندوق ثمـــار | C91: إيرادات متنوعة | D91: التغير فى القيمة العادلة لإستثمارات فى أوراق مالية بغرض المتاجرة
A92: =ROW()-1 -> 91 | B92: فوائد دائنة | C92: إيرادات متنوعة | D92: فوائد دائنة
A93: =ROW()-1 -> 92 | B93: أرباح مؤجلة من البيع وإعادة التأجير - قائمة الدخل | C93: إيرادات متنوعة | D93: أرباح مؤجلة من البيع وإعادة التأجير
A94: =ROW()-1 -> 93 | B94: مصروفات تمويلية | C94: مصروفات النشاط | D94: مصروفات تمويلية
A95: =ROW()-1 -> 94 | B95: ضريبة الدخل الحالية | C95: مصروفات النشاط | D95: ضريبة الدخل الحالية
A96: =ROW()-1 -> 95 | B96: صافى الضريبة المؤجلة | C96: مصروفات النشاط | D96: صافى الضريبة المؤجلة
